Cogmind - Beta 15 @@@ ROGUE MODE // 2025.05.21 @ 21:49:55 Player: Dosh Result: Destroyed by H-88 Terminator with KE Penetrator Performance ------------- Evolutions (8) 4000 Regions Visited (29) 5800 Robots Destroyed (486) 2430 Value Destroyed (28023) 28023 Prototype IDs (59) 1180 Alien Tech Used (0) 0 Bonus (15204) 15204 TOTAL SCORE: 56637 Bonus ------- High Alert Combat Kills 3219 Follower Combat Kills 5903 Entered Garrisons 1600 Used RIF Installer 5000 Aligned with FarCom 300 Friendly Fire -818 Cogmind --------- Core Integrity 0/1450 Matter 300/300 Energy 100/100 System Corruption 50% Temperature Cool (0) Movement Core (250) Ox4 Location -2/Protoforge Parts ------- > --- POWER (2) -------- (None) > --- PROPULSION (6) --- (None) > --- UTILITY (13) ----- Experimental Core Analyzer Improved Heavy Armor Plating Relay Coupler [Proto] (10) Relay Coupler [Proto] (9) > --- WEAPON (2) ------- (None) > --- INVENTORY (5) ---- Subatomic Replicator Peak State ------------ > --- POWER ------------ Light Quantum Reactor Light Quantum Reactor > --- PROPULSION ------- Heavy Siege Treads Armored Heavy Treads Biometal Heavy Treads > --- UTILITY ---------- Improved Cryofiber Web Cargo Storage Unit Experimental Core Analyzer Advanced Remote Force Field Relay Coupler [NC] Relay Coupler [C] Relay Coupler [Proto] Relay Coupler [Proto] Relay Coupler [Proto] Relay Coupler [Proto] Relay Coupler [Proto] Relay Coupler [Proto] > --- WEAPON ----------- Enhanced Nova Cannon Advanced Remote Datajack > --- INVENTORY -------- Antimatter Reactor Light Quantum Reactor Improved Heavy Treads Advanced Heat Sink Experimental Heat Sink Experimental Heat Sink Advanced Cooling System Advanced Cooling System Quantum Capacitor Transmission Jammer Advanced ECM Suite EM Shield Relay Coupler [NC] Subatomic Replicator Terrabomb Enhanced Nova Cannon Firepult Heavy Rocket Launcher Advanced Remote Datajack [Rating: 186] Favorites ----------- Power Quantum Reactor Engine Cooled Ion Engine Power Core Micro Fission Core Reactor Quantum Reactor Propulsion Light Treads Treads Light Treads Leg Heavy Shield Leg Utility High-capacity Storage Unit Device Cooling System Storage High-capacity Storage Unit Processor Advanced Targeting Computer Hackware Relay Coupler [Sentry] Protection Medium Armor Plating Weapon Spread Laser Energy Gun Spread Laser Energy Cannon Plasma Cannon Ballistic Gun High-powered Shotgun Ballistic Cannon Gauss Cannon Launcher Heavy Missile Launcher Special Weapon Advanced Remote Datajack Impact Weapon Power Maul Slashing Weapon Great Axe Special Melee Weapon Datajack Build | -11 -10 -10 -9 -9 -9 -8 -8 -8 -8 -8 -8 -8 -7 -7 -7 -7 -6 -6 -6 -6 -5 -5 -4 -4 -3 -3 -2 -2 -2 ------- Run | Yrd Mat Min Mat Min Exi Min Mat Gar Mat Gar Mat Gar Fac Was Fac Gar Fac Was Fac Gar Fac Gar Fac Gar Res Gar Res Qua Frg Slots Evolved 16 | . . . 2 . . . 2 . . . . . 2 . . . 2 . . . 2 . 2 . 2 . 2 . . Power 1 | . . . . . . . . . . . . . . . . . 1 . . . . . . . . . . . . Propulsion 4 | . . . 1 . . . . . . . . . 1 . . . . . . . . . 2 . . . . . . Utility 11 | . . . 1 . . . 2 . . . . . 1 . . . 1 . . . 2 . . . 2 . 2 . . Weapon . | . . . . . . . . . . . . . . . . . . . . . . . . . . . . . . Parts Attached 345 | 6 13 . 17 3 2 . 21 3 14 8 2 10 14 8 10 15 3 9 8 16 12 32 7 12 1 14 46 20 19 Power 38 | 1 1 . 2 . 1 . 2 . . 1 2 1 2 1 . 1 1 2 1 . . 6 . . . 2 5 4 2 Engine 12 | 1 1 . 2 . 1 . 2 . . 1 2 1 1 . . . . . . . . . . . . . . . . Core 1 | . . . . . . . . . . . . . 1 . . . . . . . . . . . . . . . . Reactor 25 | . . . . . . . . . . . . . . 1 . 1 1 2 1 . . 6 . . . 2 5 4 2 Propulsion 68 | 2 2 . 8 2 1 . 9 1 4 . . 1 3 3 . 1 . 3 . 3 . 6 1 1 . . 5 3 9 Treads 63 | 2 2 . 8 2 1 . 9 1 4 . . 1 3 3 . 1 . 3 . 3 . 6 1 1 . . 5 3 4 Leg 5 | . . . . . . . . . . . . . . . . . . . . . . . . . . . . . 5 Wheel . | . . . . . . . . . . . . . . . . . . . . . . . . . . . . . . Hover . | . . . . . . . . . . . . . . . . . . . . . . . . . . . . . . Flight . | . . . . . . . . . . . . . . . . . . . . . . . . . . . . . . Utility 178 | 1 6 . 3 1 . . 5 1 6 4 . 5 7 3 8 9 2 3 4 12 8 16 6 10 1 9 31 12 5 Device 52 | . 2 . 1 1 . . 3 . . 1 . . 3 2 2 2 2 1 1 1 3 7 . 2 1 1 13 2 1 Storage 5 | 1 2 . . . . . . . . . . . 1 . . . . . . . . 1 . . . . . . . Processor 4 | . . . . . . . . . 1 . . . . . . . . . . . . . . . . . 2 1 . Hackware 82 | . . . . . . . 1 . 1 2 . 4 . . 4 6 . 1 3 11 3 5 6 7 . 7 12 9 . Protection 35 | . 2 . 2 . . . 1 1 4 1 . 1 3 1 2 1 . 1 . . 2 3 . 1 . 1 4 . 4 Artifact . | . . . . . . . . . . . . . . . . . . . . . . . . . . . . . . Weapon 61 | 2 4 . 4 . . . 5 1 4 3 . 3 2 1 2 4 . 1 3 1 4 4 . 1 . 3 5 1 3 Energy Gun 10 | . 2 . 2 . . . 2 . 1 . . . . . . . . . . . . 2 . 1 . . . . . Energy Cannon 22 | . 2 . . . . . . . . . . 3 1 . 2 2 . 1 3 . 2 1 . . . 1 2 . 2 Ballistic Gun 8 | 2 . . 2 . . . . . 3 . . . . . . . . . . . 1 . . . . . . . . Ballistic Cannon 2 | . . . . . . . . . . 2 . . . . . . . . . . . . . . . . . . . Launcher 3 | . . . . . . . . 1 . . . . . . . 2 . . . . . . . . . . . . . Special Weapon 12 | . . . . . . . . . . 1 . . 1 . . . . . . 1 1 1 . . . 2 3 1 1 Impact Weapon 2 | . . . . . . . 2 . . . . . . . . . . . . . . . . . . . . . . Slashing Weapon 1 | . . . . . . . . . . . . . . 1 . . . . . . . . . . . . . . . Piercing Weapon . | . . . . . . . . . . . . . . . . . . . . . . . . . . . . . . Special Melee Weapon 1 | . . . . . . . 1 . . . . . . . . . . . . . . . . . . . . . . Unidentified Prototypes 12 | . 1 . 2 1 . . 1 . 1 . . . . . . . . . 2 . 1 . . . . . 1 . 2 Parts Lost 96 | . 2 . 1 . . 1 3 2 3 1 2 2 4 . . 3 . . . . . 13 . . . 1 11 11 36 Power 16 | . . . . . . . . . . 1 2 . . . . 1 . . . . . 1 . . . . 3 2 6 Propulsion 19 | . 1 . . . . . . . . . . 1 1 . . . . . . . . 1 . . . . . 2 13 Utility 48 | . . . 1 . . 1 2 2 . . . . 3 . . 2 . . . . . 9 . . . 1 7 4 16 Weapon 13 | . 1 . . . . . 1 . 3 . . 1 . . . . . . . . . 2 . . . . 1 3 1 Highest Loss Streak 15 | . 2 . 1 . . 1 1 1 1 1 1 1 2 . . 2 . . . . . 3 . . . 1 4 4 15 To Critical Strikes 1 | . . . . . . . . . . . . . . . . . . . . . . . . . . . . 1 . Average Backups 20 | . 9 16 19 20 19 18 17 18 18 18 19 17 20 22 21 21 22 22 21 21 21 21 23 24 25 27 26 23 13 Power 1 | . . . 1 2 1 1 1 1 1 . . . . . 2 1 . 1 1 2 2 1 2 2 2 2 2 1 1 Propulsion 2 | . 1 3 4 5 4 4 5 5 4 4 4 2 . 1 2 1 1 1 1 1 2 2 2 1 1 1 1 1 . Utility 10 | . 4 9 8 7 7 6 3 5 6 7 8 7 11 13 10 10 14 14 13 11 11 12 13 15 16 18 16 13 6 Weapon 4 | . 1 3 3 4 4 6 6 6 5 6 6 6 5 4 5 5 4 4 5 5 4 3 4 4 5 4 3 3 2 Tool/Special . | . . . . . . . . . . . . . . . . . . . . . . . . . . . . . . Unused Backups 52 | . 3 . 6 1 1 . 3 . 1 . . 1 . 5 2 3 . 1 . 1 1 10 . . 2 5 2 . 4 Power 5 | . . . 1 . . . 1 . . . . . . . . . . 1 . . . . . . . 1 1 . . Propulsion 7 | . . . . . . . 2 . 1 . . . . 1 . . . . . . . 3 . . . . . . . Utility 27 | . 1 . 3 . 1 . . . . . . . . 4 1 3 . . . 1 . 5 . . 2 4 . . 2 Weapon 10 | . 2 . 2 1 . . . . . . . 1 . . 1 . . . . . 1 2 . . . . . . . Tool/Special 3 | . . . . . . . . . . . . . . . . . . . . . . . . . . . 1 . 2 Average Slot Usage (%) 87 | . 99 100 99 100 100 99 99 99 98 99 97 99 97 88 78 80 85 70 71 82 86 77 74 73 71 75 72 73 69 Engine 4 | . 14 14 11 11 11 11 8 9 9 8 6 9 5 3 . . . . . . . . . . . . . . . Reactor 4 | . . . . . . . . . . . . . . 3 7 7 13 13 13 13 11 10 10 10 9 9 7 7 6 Treads 21 | . 28 28 33 33 33 33 27 27 26 27 27 27 29 21 15 15 13 13 13 13 11 10 15 15 14 14 13 13 11 Device 13 | . 9 14 11 11 11 11 17 17 10 12 18 9 13 12 10 5 13 7 11 18 13 14 7 8 14 17 17 18 14 Storage 7 | . 14 14 11 11 11 11 9 9 9 9 9 9 7 7 7 7 6 6 6 6 5 6 10 6 4 4 4 4 3 Processor 1 | . . . . . . . . . 8 9 9 . . . . . . . . . . . . . . . . 1 4 Hackware 10 | . . . . . . . 8 9 11 5 . 5 15 15 11 18 19 10 8 17 19 13 18 17 14 14 15 17 20 Protection 6 | . 4 . 10 10 11 10 9 8 4 9 9 20 6 7 9 10 6 6 4 . 10 5 1 3 4 4 3 1 . Energy Gun 6 | . 3 . 15 22 22 22 16 14 14 4 9 1 . . . . . . . . . 2 5 5 4 . . . . Energy Cannon 6 | . 16 28 6 . . . . . . . . 12 15 11 12 12 6 11 8 8 6 7 . . . 3 4 4 5 Special Weapon 1 | . . . . . . . . . . 1 . . . 2 2 2 5 1 3 3 3 1 4 4 4 4 4 3 . Peak Build Rating 186 | 6 16 15 18 24 22 22 35 39 46 53 52 48 47 67 70 70 80 87 92 89 96 117 132 141 155 162 176 186 179 Average Rating 74 | 5 11 15 17 18 20 21 30 35 39 46 48 43 44 56 67 66 78 84 87 82 92 98 121 131 154 157 169 165 151 On Entrance 68 | . 6 15 15 18 19 22 22 33 34 42 52 47 38 47 66 66 68 76 87 83 84 88 116 118 141 155 162 170 166 Naked Turns . | . . . . . . . . . . . . . . . . . . . . . . . . . . . . . . Heaviest Build 295 | 13 54 54 63 63 63 63 68 68 69 79 75 85 114 127 128 127 140 173 180 136 153 295 286 272 235 239 245 222 205 Greatest Support 235 | 40 40 40 60 60 60 60 60 68 84 84 84 84 98 140 140 140 140 140 140 150 145 155 230 230 230 230 235 215 210 Greatest Overweight (x) 9 | . 1 1 1 1 1 1 1 1 . . . 1 1 1 . . . 1 1 . 1 1 1 1 1 1 1 1 9 Average Overweight (x) . | . . 1 . 1 1 . . . . . . . . . . . . . . . . . 1 . 1 . . . . Largest Inventory Capacity 30 | 8 20 20 20 20 20 20 20 20 20 20 20 20 25 25 25 25 25 25 25 25 25 30 30 30 30 30 30 30 30 Average Capacity 23 | 7 13 20 20 20 20 20 20 20 20 20 20 20 22 25 25 25 25 25 25 25 25 26 30 30 30 30 30 30 27 Most Carried 30 | 1 17 16 20 20 20 20 20 20 20 20 20 20 25 25 25 25 25 25 25 25 25 30 28 30 28 30 30 30 23 Average Carried 22 | . 9 16 19 20 19 19 18 19 19 19 20 18 21 24 24 24 24 24 23 24 24 25 26 27 27 29 29 26 15 Final Capacity 30 | 8 20 20 20 20 20 20 20 20 20 20 20 20 25 25 25 25 25 25 25 25 25 30 30 30 30 30 30 30 5 Final Carried 30 | 1 16 16 20 20 20 19 18 20 20 20 20 20 25 25 25 25 25 25 22 25 24 30 25 29 28 30 28 21 1 Class Distribution -------------------- 44% | Botlord-Mutant 43% | Mutant 9% | Bothacker-Mutant Dominant Class ---------------- Mutant | -10/Materials Mutant | -10/Mines Mutant | -9/Materials Mutant | -9/Mines Mutant | -9/Exiles Mutant | -8/Mines Mutant | -8/Materials Mutant | -8/Garrison Mutant | -8/Materials Mutant | -8/Garrison Mutant | -8/Materials Mutant | -8/Garrison Bothacker-Mutant | -7/Factory Bothacker-Mutant | -7/Waste Bothacker-Mutant | -7/Factory Botlord-Mutant | -7/Garrison Botlord-Mutant | -6/Factory Botlord-Mutant | -6/Waste Botlord-Mutant | -6/Factory Botlord-Mutant | -6/Garrison Botlord-Mutant | -5/Factory Botlord-Mutant | -5/Garrison Botlord-Mutant | -4/Factory Botlord-Mutant | -4/Garrison Botlord-Mutant | -3/Research Botlord-Mutant | -3/Garrison Botlord-Mutant | -2/Research Botlord-Mutant | -2/Quarantine Botlord-Mutant | -2/Protoforge Resources | -11 -10 -10 -9 -9 -9 -8 -8 -8 -8 -8 -8 -8 -7 -7 -7 -7 -6 -6 -6 -6 -5 -5 -4 -4 -3 -3 -2 -2 -2 ----------- Run | Yrd Mat Min Mat Min Exi Min Mat Gar Mat Gar Mat Gar Fac Was Fac Gar Fac Was Fac Gar Fac Gar Fac Gar Res Gar Res Qua Frg Matter Collected 10226 | 211 330 . 181 60 . 30 344 279 391 513 224 594 195 222 404 630 112 454 251 577 291 697 30 504 17 527 1413 403 342 Remotely . | . . . . . . . . . . . . . . . . . . . . . . . . . . . . . . Salvage Created 24609 | . 831 85 1091 145 . 114 977 391 938 285 203 542 702 1761 370 1202 115 1398 184 1119 193 1381 . 60 . 983 4958 2253 2328 Parts 1015 | . 56 6 68 9 . 5 50 21 54 21 13 26 27 35 17 42 6 19 12 44 5 70 . . 1 58 207 80 63 Haulers Intercepted 14 | . 2 . 5 . . . 5 . 1 . . . . . 1 . . . . . . . . . . . . . . Recyclers Shooed 13 | . . . 1 . . 1 1 . 1 . 1 . 2 . 2 . . . . . . . . . . . 4 . . Parts Field Recycled . | . . . . . . . . . . . . . . . . . . . . . . . . . . . . . . Retrieved Matter . | . . . . . . . . . . . . . . . . . . . . . . . . . . . . . . Parts Self-Destructed . | . . . . . . . . . . . . . . . . . . . . . . . . . . . . . . Prevented . | . . . . . . . . . . . . . . . . . . . . . . . . . . . . . . Kills | -11 -10 -10 -9 -9 -9 -8 -8 -8 -8 -8 -8 -8 -7 -7 -7 -7 -6 -6 -6 -6 -5 -5 -4 -4 -3 -3 -2 -2 -2 ------- Run | Yrd Mat Min Mat Min Exi Min Mat Gar Mat Gar Mat Gar Fac Was Fac Gar Fac Was Fac Gar Fac Gar Fac Gar Res Gar Res Qua Frg Combat Hostiles Destroyed 411 | . 19 3 28 5 . 4 25 20 27 15 3 20 12 6 7 30 5 5 5 9 3 21 . 1 . 15 66 28 29 Melee 9 | . 1 . . . . . . . . . . 1 . . . 1 . . . 1 . . . . . 1 1 2 1 Guns 117 | . 14 . 19 5 . 4 25 17 27 3 2 . . . . . . . . . . 1 . . . . . . . Cannons 206 | . 4 3 9 . . . . . . 1 1 8 10 4 7 18 2 4 4 8 3 17 . . . 12 54 23 14 AOE 43 | . . . . . . . . 3 . 11 . 9 . . . 7 3 . . . . 2 . . . . 2 . 6 Classes Destroyed 25 | . 6 1 5 . . 1 2 1 1 1 . . . 1 . 1 . . . 1 . 2 . . . 1 . . 1 Worker 11 | . . . 2 1 . . 1 . . . 3 . . . . . . . . . . . . . 1 . 2 1 . Builder 9 | . . . . . . . 1 . . . . . . . . . . . 2 . . . . . . . 4 . 2 Tunneler 3 | . . . 1 . . . . . 1 . . . . . . . . . . . . . . . . . 1 . . Hauler 14 | . 2 . 5 . . . 5 . 1 . . . . . 1 . . . . . . . . . . . . . . Recycler 5 | . 1 . . . . . 1 . . . 1 . 1 . . . . . . . . . . . . . . 1 . Operator 4 | . 1 . 1 . . . 1 . . . . . . . . . . . . . . . . . . . . 1 . Drone 3 | . . . . . . . . . . . . . . . . . . . . . . . . . . . . . 3 Watcher 19 | . 3 . 2 . . . 4 . 4 . . . . . . . . . . . 1 . . . . . 2 1 2 Swarmer 69 | . 6 . 9 . . . 4 7 6 5 . 6 . . 2 4 4 . 3 1 . 7 . . . 2 3 . . Cutter 6 | . . . . . . . . . . . . . . . . . . . . 1 . 4 . . . 1 . . . Saboteur 2 | . . . . . . . . . . . . . . . . . . . . . . . . . . 2 . . . Grunt 154 | . 13 2 13 4 . 3 11 9 11 7 . 6 6 . . 15 1 . 1 2 2 3 . . . 4 18 17 6 Brawler 7 | . . . 1 1 . . . . . . . . . . . 1 . . . . . . . . . . 2 2 . Duelist 12 | . . . . . . 1 . . . . . . . . . 4 . . . . . 1 . 1 . . 4 . 1 Protector 2 | . . . . . . . . . . . . . . . . . . . . . . 1 . . . . 1 . . Sentry 51 | . . . 5 . . . 8 . 9 2 3 4 3 . 2 1 . . . . . 2 . . . 2 4 . 6 Demolisher 3 | . . 1 . . . . . 1 . . . . . . . . . . . . . 1 . . . . . . . Specialist 6 | . . . . . . . . 1 . . . . . . . . . . . 2 . 2 . . . 1 . . . Hunter 20 | . . . . . . . 2 2 . 1 . 1 . . . 2 . . . . . . . . . . 10 2 . Programmer 60 | . . . . . . . . . . 1 . 4 3 . 3 3 . . 1 3 1 2 . . . 1 23 7 8 Heavy 2 | . . . . . . . . . 1 . . . . . . . . . . . . . . . . . 1 . . Behemoth 5 | . . . . . . . . . . . . . . . . . . . . . . 1 . . . 2 1 . 1 Compactor 11 | . . . . . . . . . . . . . . 6 . . . 5 . . . . . . . . . . . Hotshot 3 | . . . . . . . . . . . . . . . . . . . . . . . . . . . . . 3 Overlord 1 | . . . . . . . . . . . . . . . . . . . . . . . . . . . . . 1 Zionite 1 | . . . 1 . . . . . . . . . . . . . . . . . . . . . . . . . . Surgeon 1 | . . . . . . . . . . . . . . . . 1 . . . . . . . . . . . . . Martyr 2 | . . . . . . . . . . . . . . 2 . . . . . . . . . . . . . . . Best Kill Streak 13 | . 7 2 4 2 . 3 5 5 4 5 4 5 3 1 3 13 3 1 3 2 2 3 . 1 1 3 5 7 8 Combat Bots Only 13 | . 7 2 3 2 . 3 4 5 4 5 2 5 3 1 3 13 3 1 3 2 2 3 . 1 . 3 4 6 8 Max Kills in Single Turn 4 | . 1 1 2 1 . 1 1 2 1 2 1 3 1 1 1 4 3 1 1 1 1 2 . 1 1 1 2 1 1 Gunslinging 1 | . . . 1 . . . . . . . . . . . . . . . . . . . . . . . . . . Exploded 4 | . . . . . . . . 2 . 2 . 3 . . . 4 3 . . . . 2 . . . . 2 . 1 Melee 1 | . 1 . . . . . . . . . . 1 . . . 1 . . . 1 . . . . . 1 1 1 1 Uniques/NPCs Destroyed . | . . . . . . . . . . . . . . . . . . . . . . . . . . . . . . Combat | -11 -10 -10 -9 -9 -9 -8 -8 -8 -8 -8 -8 -8 -7 -7 -7 -7 -6 -6 -6 -6 -5 -5 -4 -4 -3 -3 -2 -2 -2 -------- Run | Yrd Mat Min Mat Min Exi Min Mat Gar Mat Gar Mat Gar Fac Was Fac Gar Fac Was Fac Gar Fac Gar Fac Gar Res Gar Res Qua Frg Hostile Shots Fired 2507 | . 94 4 104 10 . 20 111 91 97 58 15 86 110 . 72 154 24 . 50 132 29 194 6 36 8 77 379 221 325 Missed 701 | . 26 1 34 5 . 9 29 16 25 19 4 19 39 . 30 39 9 . 9 36 9 43 3 10 2 28 103 70 84 Hits 1806 | . 68 3 70 5 . 11 82 75 72 39 11 67 71 . 42 115 15 . 41 96 20 151 3 26 6 49 276 151 241 Melee 21 | . . . 1 1 . . . . . . . . . . . 2 . . . 6 . 5 . . . 3 3 . . Projectile 1785 | . 68 3 69 4 . 11 82 75 72 39 11 67 71 . 42 113 15 . 41 90 20 146 3 26 6 46 273 151 241 AOE 23 | . . . . . . . . 5 . . . . . . . . . . . . . 16 . . . 1 1 . . Critical Strikes 85 | . . . 1 1 . 1 3 5 3 1 2 2 1 . . 3 1 . . 3 4 6 1 . . 2 11 8 26 Part Disruptions 3 | . . . . . . . . . . . . . 1 . . . . . . . . 1 . . . . . . 1 Damage Taken 33127 | . 691 39 736 139 . 204 828 906 1066 480 240 764 866 21 354 1664 153 271 374 999 342 3082 129 822 61 1122 7044 3778 5952 Core 3348 | . 105 . 80 22 . 35 55 96 200 33 13 71 83 21 26 168 20 271 14 90 23 247 11 61 9 128 278 277 911 Absorbed by Shields 3108 | . . . . . . . 315 373 . 66 30 155 . . . . 161 . 232 528 61 151 . . 59 309 481 173 14 Reduced by Siege Mode 852 | . . . . . . . . . . . . . . . . 12 . . . 25 . 127 . . . 15 465 121 87 Redirected to Shielding 142 | . . . . . . . . . . 2 5 15 . . . . . . . . . . . . . . . . 120 Ignored by Resistances 304 | . . . . . . . . . . 53 . 15 8 . . . . . . . . . . . . 6 60 105 57 Regen/Repaired (Parts) 2458 | . . . 101 . . . 169 . 224 . . . . 37 14 78 . . . . 61 . . . . . 1774 . . Core Remaining (%) 66 | 100 . 58 . . . 65 . . . . . 14 . . . 57 . . . 53 . 73 . 93 . 89 . . . Volleys Fired 2146 | . 75 5 70 13 . 11 107 47 82 41 11 60 42 64 43 117 12 47 31 110 50 121 15 47 8 125 503 183 106 Largest 2 | . 2 2 2 2 . 2 2 2 2 2 2 2 2 2 2 2 1 2 2 2 2 2 1 2 1 1 1 1 2 Hottest 250 | . 136 136 136 130 . 130 130 130 130 104 105 160 160 160 160 160 80 160 170 170 180 180 5 170 65 120 120 120 250 Shots Fired 2997 | . 146 10 140 26 . 22 214 92 164 63 24 102 84 122 61 182 12 87 43 160 60 187 15 53 8 125 497 177 121 Gun 789 | . 108 . 84 26 . 22 214 89 164 26 16 . . . . . . . . . . 10 . 26 2 2 . . . Cannon 1863 | . 38 10 56 . . . . . . 21 8 79 83 115 40 150 5 80 30 132 37 162 . 2 . 89 439 166 121 Launcher 32 | . . . . . . . . 3 . 10 . 11 . . . 6 1 . . . . 1 . . . . . . . Special 313 | . . . . . . . . . . 6 . 12 1 7 21 26 6 7 13 28 23 14 15 25 6 34 58 11 . Kinetic 149 | . 92 . . . . . . . 9 32 11 5 . . . . . . . . . . . . . . . . . Thermal 2503 | . 54 10 140 26 . 22 214 89 155 15 13 74 83 115 40 150 5 80 30 132 37 172 . 28 2 91 439 166 121 Explosive 32 | . . . . . . . . 3 . 10 . 11 . . . 6 1 . . . . 1 . . . . . . . Electromagnetic . | . . . . . . . . . . . . . . . . . . . . . . . . . . . . . . Robot Hit Streak 38 | . 12 7 15 23 . 14 21 14 33 12 13 10 12 24 8 16 3 13 12 38 9 32 3 10 3 19 23 15 27 Robot Miss Streak 15 | . 3 1 7 5 . 4 15 6 9 3 4 3 3 4 3 4 1 3 3 4 3 4 2 2 1 5 6 5 7 Penetration Max . | . . . . . . . . . . . . . . . . . . . . . . . . . . . . . . Secondary Targets 9 | . . . 2 1 . . . 2 4 . . . . . . . . . . . . . . . . . . . . Max Gunslinging Chain 1 | . . . 1 1 . . . 1 1 . . . . . . . . . . . . . . . . . . . . Capacitor 774 | . . . . . . . . . . . . . . . . . . . . . . . . . 2 91 435 166 80 Shots Hit Robots 2058 | . 92 8 97 26 . 21 190 76 150 43 19 48 62 102 41 92 7 63 24 99 33 109 10 26 4 73 331 121 91 Core Hits 1382 | . 41 4 123 51 . 37 236 109 222 34 25 31 23 20 12 43 5 18 6 31 6 48 . 5 1 20 91 45 95 Critical Kills 24 | . . . . . . . . . . . . . 1 2 . 3 . 1 . 2 . 2 . . . 2 7 3 1 Critical Parts Destroyed 2 | . 1 . . . . . . . . 1 . . . . . . . . . . . . . . . . . . . Critical Strikes 31 | . 1 . . . . . . . . 3 1 . 1 4 . 3 . 1 . 2 . 2 . . . 2 7 3 1 Meltdown 24 | . . . . . . . . . . . . . 1 2 . 3 . 1 . 2 . 2 . . . 2 7 3 1 Destroy 2 | . 1 . . . . . . . . 1 . . . . . . . . . . . . . . . . . . . Blast 3 | . . . . . . . . . . 2 1 . . . . . . . . . . . . . . . . . . Sever 2 | . . . . . . . . . . . . . . 2 . . . . . . . . . . . . . . . Melee Attacks 48 | . . . . . . . 7 16 3 9 2 4 . 5 2 . . . . . . . . . . . . . . Impact 37 | . . . . . . . 5 16 1 9 2 4 . . . . . . . . . . . . . . . . . Slashing 7 | . . . . . . . . . . . . . . 5 2 . . . . . . . . . . . . . . Piercing . | . . . . . . . . . . . . . . . . . . . . . . . . . . . . . . Sneak Attacks 11 | . . . . . . . 3 . 2 . . . . 5 1 . . . . . . . . . . . . . . Combat Hostiles . | . . . . . . . . . . . . . . . . . . . . . . . . . . . . . . Follow-up Attacks . | . . . . . . . . . . . . . . . . . . . . . . . . . . . . . . Damage Inflicted 60527 | 2 1244 171 1715 426 . 362 2738 1664 2478 1900 432 1927 1779 3077 903 2905 399 1625 565 2508 695 3797 21 227 45 2159 14116 5226 5421 Guns 9672 | . 826 . 1062 410 . 362 2604 1097 2413 320 216 . . . . . . . . . . 122 . 208 32 . . . . Cannons 42340 | . 391 164 617 . . . . . . 284 113 1016 1728 2645 745 2102 80 1625 500 2491 528 3514 . . . 2159 13310 5151 3177 Explosions 6697 | . . . . . . . . 562 . 1296 . 910 . . . 801 310 . . . 112 160 . . . . 349 . 2197 Melee 683 | . . . . . . . 101 . . . 60 . . 432 90 . . . . . . . . . . . . . . Ramming 1135 | 2 27 7 36 16 . . 33 5 65 . 43 1 51 . 68 2 9 . 65 17 55 1 21 19 13 . 457 75 47 Kinetic 1481 | . 686 . . . . . . . 75 472 147 101 . . . . . . . . . . . . . . . . . Thermal 52728 | . 531 164 1679 410 . 362 2604 1097 2338 132 182 915 1728 2645 745 2102 80 1625 500 2491 528 3636 . 208 32 2159 13310 5151 5374 Explosive 4500 | . . . . . . . . 562 . 1296 . 910 . . . 801 310 . . . 112 160 . . . . 349 . . Electromagnetic . | . . . . . . . . . . . . . . . . . . . . . . . . . . . . . . Impact 161 | . . . . . . . 101 . . . 60 . . . . . . . . . . . . . . . . . . Slashing 522 | . . . . . . . . . . . . . . 432 90 . . . . . . . . . . . . . . Piercing . | . . . . . . . . . . . . . . . . . . . . . . . . . . . . . . Highest Corruption 50 | . . . . . . . 3 3 4 5 5 9 3 3 5 7 . 15 16 16 2 9 . . . . 21 29 50 Average Corruption 8 | . . . . . . . 1 3 3 4 5 7 2 3 3 5 . 13 15 16 2 3 . . . . 10 24 32 Corruption Purged . | . . . . . . . . . . . . . . . . . . . . . . . . . . . . . . Corruption Blocked . | . . . . . . . . . . . . . . . . . . . . . . . . . . . . . . Effects 808 | . . . . . . . 38 28 52 20 17 57 16 22 36 42 . 30 48 74 1 39 . . . . 150 71 67 Message Errors 198 | . . . . . . . 10 5 14 6 6 13 6 6 9 11 . 7 8 18 . 10 . . . . 36 18 15 Matter Fused 173 | . . . . . . . 8 8 11 1 2 12 3 7 10 10 . 4 14 14 . 8 . . . . 32 20 9 Heat Flow Errors 78 | . . . . . . . 4 4 8 4 . 8 3 . 4 5 . 1 8 7 . 3 . . . . 5 8 6 Energy Discharges 90 | . . . . . . . 5 3 3 4 2 8 . 1 6 2 . 2 5 11 1 4 . . . . 25 2 6 Parts Rejected 17 | . . . . . . . . 1 1 1 1 . . 3 . 2 . 2 1 1 . 1 . . . . 1 . 2 Parts Fused 8 | . . . . . . . 1 1 . . 1 . . . 1 . . 1 2 . . 1 . . . . . . . Data Loss (minor) 89 | . . . . . . . 6 3 4 . 1 6 2 2 2 5 . 2 6 9 . 7 . . . . 20 6 8 Data Loss (major) 37 | . . . . . . . 2 . 3 1 2 4 1 1 1 3 . 3 . 2 . 3 . . . . 4 4 3 Misfires 37 | . . . . . . . 1 1 5 1 2 5 1 1 1 . . 2 2 4 . . . . . . 6 2 3 Alerts 25 | . . . . . . . . 1 1 . . 1 . 1 . 1 . 3 2 2 . 1 . . . . 5 3 4 Misdirections 16 | . . . . . . . . . . . . . . . . . . 2 . 3 . . . . . . 4 . 7 Weapon Failures 40 | . . . . . . . 1 1 2 2 . . . . 2 3 . 1 . 3 . 1 . . . . 12 8 4 Overload Shots . | . . . . . . . . . . . . . . . . . . . . . . . . . . . . . . Overflow Damage 1314 | . 12 . 3 . . . . 56 . 77 20 114 19 . 60 90 46 . 37 10 36 45 . . . 16 528 69 76 Projectiles 926 | . 12 . 3 . . . . . . 12 . 69 19 . . 70 . . 37 10 36 45 . . . 16 466 69 62 Explosions 253 | . . . . . . . . 56 . 65 . 45 . . . 20 46 . . . . . . . . . 7 . 14 Melee 135 | . . . . . . . . . . . 20 . . . 60 . . . . . . . . . . . 55 . . Knockbacks 16 | . 1 . 1 . . . . . 1 3 1 . 1 . . . . . 1 . . . . . . . 6 1 . Impact 11 | . 1 . 1 . . . . . 1 . . . 1 . . . . . 1 . . . . . . . 5 1 . Kinetic 4 | . . . . . . . . . . 3 1 . . . . . . . . . . . . . . . . . . Secondary 1 | . . . . . . . . . . . . . . . . . . . . . . . . . . . 1 . . Self-Inflicted Damage 578 | . . . . . . . . 28 29 30 . 100 . . . 132 . . . . . 48 . . . . 61 . 150 Shots 33 | . . . . . . . . 1 1 2 . 3 . . . 3 . . . . . 1 . . . . 1 . 21 Rammed 82 | 1 4 3 6 2 . . 3 1 9 . 3 . 6 . 3 . 1 . 6 2 . 1 1 1 . . 18 3 8 Targets Rammed 105 | 1 6 3 7 3 . . 5 1 10 . 4 1 6 . 3 1 1 . 7 3 1 1 1 1 1 . 22 5 11 Kicked 1 | . . . . . . . . . . . . . . . . . . . . . . . . . . . . . 1 Crushed 22 | . 2 . 1 1 . . 2 . 1 . 1 1 . . . 1 . . 1 1 1 . . . 1 . 4 2 2 Highest Temperature 819 | . 168 199 198 14 . 51 203 249 260 258 36 344 290 200 201 351 . 819 429 183 2 263 . 164 20 468 420 86 557 Average Temperature 92 | . 47 98 67 7 . 29 31 52 43 43 14 82 60 80 53 83 . 141 169 62 2 115 . 66 20 104 122 86 153 Received Heat Transfer 6519 | . 282 24 234 66 . 135 321 293 450 114 91 121 297 9 18 489 10 . 79 57 151 818 9 84 . 104 604 453 1206 Effects 33 | . . . . . . . . . . . . 2 1 . . 3 . 13 7 . . 3 . . . 1 2 . 1 Shutdowns 11 | . . . . . . . . . . . . . . . . . . 5 4 . . . . . . 1 . . 1 Energy Bleed 3 | . . . . . . . . . . . . . 1 . . . . . 1 . . 1 . . . . . . . Interference 10 | . . . . . . . . . . . . 2 . . . 2 . . 2 . . 2 . . . . 2 . . Matter Decay 6 | . . . . . . . . . . . . . . . . . . 6 . . . . . . . . . . . Short Circuit 1 | . . . . . . . . . . . . . . . . 1 . . . . . . . . . . . . . Damage (core) 2 | . . . . . . . . . . . . . . . . . . 2 . . . . . . . . . . . Siege Activations 15 | . . . . . . . . . . . . . . . . 1 . . . 1 . 2 . . . 1 6 3 1 Total Turns 282 | . . . . . . . . . . . . . . . . 22 . . . 14 . 52 . . . 12 102 53 27 Longest Duration 27 | . . . . . . . . . . . . . . . . 22 . . . 14 . 27 . . . 12 23 22 27 Martial Activations . | . . . . . . . . . . . . . . . . . . . . . . . . . . . . . . Shielding Activations . | . . . . . . . . . . . . . . . . . . . . . . . . . . . . . . Robots Disrupted . | . . . . . . . . . . . . . . . . . . . . . . . . . . . . . . Combat Hostiles . | . . . . . . . . . . . . . . . . . . . . . . . . . . . . . . Robots Corrupted 2 | . . . . . . . . . . . . . . . . . . . . . . . . . . . 2 . . Combat Hostiles . | . . . . . . . . . . . . . . . . . . . . . . . . . . . . . . Parts Fried 3 | . . . . . . . . . . . . . . . . . . . . . . . . . . . 3 . . Impact Corruptions 7 | . . . . . . . . . . . 1 . . . 1 . . . . . . . . . . . 5 . . Robots Melted 39 | . . . . . . . . . . . . 2 2 2 . 4 . 1 1 2 . 2 . 1 . 2 9 3 8 Combat Hostiles 36 | . . . . . . . . . . . . 2 2 2 . 4 . 1 1 . . 1 . 1 . 2 9 3 8 Parts Melted 186 | . 2 . 3 1 . . 2 1 1 . . 4 19 3 9 14 . 1 . 7 . 5 . 2 . 8 44 4 56 Heat Transferred 73649 | . 1038 296 2450 488 . 455 3260 1376 2930 175 225 1700 3100 5200 1400 3900 150 3200 670 2960 555 3864 . 399 18 2035 10763 4102 16940 Parts Sabotaged . | . . . . . . . . . . . . . . . . . . . . . . . . . . . . . . Parts Stolen . | . . . . . . . . . . . . . . . . . . . . . . . . . . . . . . Parts Stripped . | . . . . . . . . . . . . . . . . . . . . . . . . . . . . . . Power Chain Reactions 1 | . . . . . . . . . 1 . . . . . . . . . . . . . . . . . . . . Alert | -11 -10 -10 -9 -9 -9 -8 -8 -8 -8 -8 -8 -8 -7 -7 -7 -7 -6 -6 -6 -6 -5 -5 -4 -4 -3 -3 -2 -2 -2 ------- Run | Yrd Mat Min Mat Min Exi Min Mat Gar Mat Gar Mat Gar Fac Was Fac Gar Fac Was Fac Gar Fac Gar Fac Gar Res Gar Res Qua Frg Maximum Alert Level 4 | . 1 . 1 . . . . 3 2 2 1 3 2 . 1 4 3 1 . 3 2 3 2 1 1 4 3 3 1 Low Security (%) 50 | 100 76 100 54 100 . 100 100 15 88 20 12 15 . 100 74 . . 84 100 35 57 14 81 70 92 16 . 1 79 Level 1 19 | . 23 . 45 . . . . 41 10 41 87 3 65 . 25 15 . 15 . 16 32 27 1 29 7 21 8 42 20 Level 2 19 | . . . . . . . . 34 . 37 . 46 34 . . 20 . . . 41 10 26 16 . . 27 74 43 . Level 3 8 | . . . . . . . . 8 . . . 34 . . . 25 100 . . 6 . 31 . . . 26 16 12 . Level 4 1 | . . . . . . . . . . . . . . . . 38 . . . . . . . . . 7 . . . Level 5 . | . . . . . . . . . . . . . . . . . . . . . . . . . . . . . . High Security . | . . . . . . . . . . . . . . . . . . . . . . . . . . . . . . Max Security . | . . . . . . . . . . . . . . . . . . . . . . . . . . . . . . Peak Influence 1528 | . 252 56 336 114 . 59 164 831 404 603 338 964 506 121 366 1528 916 289 101 781 453 1039 545 386 216 1205 1074 872 243 Initial 802 | . . 43 18 114 . . 13 104 404 26 293 105 506 121 . 247 802 289 . 45 409 120 545 . 216 28 677 603 144 Average 296 | . 146 3 186 17 . 7 86 415 93 296 251 596 394 13 133 924 820 104 19 366 218 538 98 158 96 551 578 468 150 Influence Increases 19408 | . 693 78 1160 205 . 149 846 767 868 637 208 959 359 . 1479 1451 386 . 270 976 790 1109 . 522 59 1427 2347 912 751 Destroy 0b10 Robot/C 9580 | . 380 60 700 140 . 120 500 420 560 360 120 420 240 . 600 700 240 . 100 300 260 400 . 20 20 520 1320 560 520 Destroy 0b10 Robot/NC 500 | . 35 . 80 10 . . 65 . 30 . 20 . 5 . 30 . . . 10 35 30 25 . . 10 . 60 20 35 Destroy Leader 1610 | . 90 10 190 30 . 20 168 20 160 20 40 50 80 . 158 30 30 . 20 10 52 40 . . 2 10 214 62 104 Allied During Kill 1462 | . . 8 34 10 . 9 . 2 2 10 8 1 . . 600 138 95 . 1 90 94 39 . 8 23 181 98 3 8 Successful Hack 345 | . 52 . 35 . . . 20 . 19 14 . 38 3 . 12 . . . 12 21 24 12 . 35 . 14 34 . . Select Force Hacks 180 | . 30 . 60 . . . 30 . 60 . . . . . . . . . . . . . . . . . . . . Disable Machine 615 | . 30 . 15 . . . . . 30 15 . 30 15 . 60 . 15 . 75 . 90 30 . 15 . 30 90 60 15 Anti-Garrison Action 2650 | . . . . . . . . 200 . 100 . 250 . . . 350 . . . 400 . 450 . 400 . 500 . . . Destroy Structure 1656 | . 1 . 1 . . . 3 95 7 73 5 95 1 . 4 128 6 . 37 105 240 113 . 44 4 172 351 102 69 Partial Spotted 15 | . . . . . . . . . . . . . . . . . . . . . . . . . . . 15 . . Lose Combat Pursuer 795 | . 75 . 45 15 . . 60 30 . 45 15 75 15 . 15 105 . . 15 15 . . . . . . 165 105 . Influence Decreases 19341 | . 581 142 915 475 23 113 722 96 1659 74 648 158 976 347 1125 277 1088 826 205 260 1399 242 1039 136 407 260 2478 1729 941 Entered New Map 5473 | . . 69 30 179 23 . 23 56 427 14 310 58 458 226 . 107 726 537 . 20 372 52 494 . 170 10 528 471 113 Time Decay 7270 | . 561 73 705 276 . 83 593 . 590 . 318 . 478 101 384 . 262 229 188 . 482 . 45 . 206 . 770 498 428 Lost Part 960 | . 20 . 10 . . 10 30 20 30 10 20 20 40 . . 30 . . . . . 130 . . . 10 110 110 360 Lost Ally 2175 | . . . 20 20 . 20 . 20 . 50 . 80 . 20 241 140 100 60 17 240 170 60 . 136 31 240 470 . 40 Purge Threat 3463 | . . . 150 . . . 76 . 612 . . . . . 500 . . . . . 375 . 500 . . . 600 650 . Squads Dispatched 87 | . 4 . 5 1 . . 5 . 8 . 5 . 4 . 8 . 2 . 2 . 7 . 4 . 3 . 21 6 2 Investigation 18 | . 3 . 4 . . . 3 . 3 . . . 1 . . . . . . . 2 . . . 1 . . 1 . Extermination 22 | . . . . . . . . . . . . . 3 . 3 . . . 1 . 2 . . . 1 . 9 2 1 Reinforcement 24 | . 1 . 1 . . . 1 . 1 . 1 . . . 3 . 1 . 1 . 3 . 3 . 1 . 6 . 1 Assault 10 | . . . . 1 . . . . . . . . . . . . . . . . . . . . . . 6 3 . Garrison 13 | . . . . . . . 1 . 4 . 4 . . . 2 . 1 . . . . . 1 . . . . . . Intercept . | . . . . . . . . . . . . . . . . . . . . . . . . . . . . . . Searches Triggered . | . . . . . . . . . . . . . . . . . . . . . . . . . . . . . . Construction Impeded 4 | . . . . . . . . . . . 1 . . . . . 1 . . . 1 . . . . . . . 1 Haulers Reinforced 3 | . . . . . . . . . . . . . . . 1 . . . . . . . . . 1 . 1 . . Active Scanning Responses . | . . . . . . . . . . . . . . . . . . . . . . . . . . . . . . Cargo Convoy Interrupts . | . . . . . . . . . . . . . . . . . . . . . . . . . . . . . . Alert ID Control Effect 78 | . . . . . . . . . . . . . . . . 1 8 . 7 3 7 6 . 13 4 7 20 . 2 Stealth | -11 -10 -10 -9 -9 -9 -8 -8 -8 -8 -8 -8 -8 -7 -7 -7 -7 -6 -6 -6 -6 -5 -5 -4 -4 -3 -3 -2 -2 -2 --------- Run | Yrd Mat Min Mat Min Exi Min Mat Gar Mat Gar Mat Gar Fac Was Fac Gar Fac Was Fac Gar Fac Gar Fac Gar Res Gar Res Qua Frg Distress Signals 29 | . 2 . 4 . . . 3 . 2 3 3 . . . 1 . 1 . 1 1 . . . . . . 6 2 . Communications Jammed 324 | . . . . . . . . . . . . . . . . . . . . . 7 27 . . 4 22 134 129 1 Distress Signals 321 | . . . . . . . . . . . . . . . . . . . . . 6 27 . . 3 22 134 129 . Times Spotted 840 | . 31 2 46 12 . 6 55 24 45 27 15 25 12 6 28 43 19 6 17 32 20 41 9 27 14 51 146 47 34 Peak Tracking Total 9 | . 4 2 5 5 . 3 5 4 4 9 5 9 4 3 4 9 5 2 4 7 3 6 2 5 5 5 7 9 6 Tactical Retreats 38 | . 1 . 3 1 . . 3 2 . 1 1 3 1 . 1 5 . . 1 1 . . . . . . 10 4 . Traps | -11 -10 -10 -9 -9 -9 -8 -8 -8 -8 -8 -8 -8 -7 -7 -7 -7 -6 -6 -6 -6 -5 -5 -4 -4 -3 -3 -2 -2 -2 ------- Run | Yrd Mat Min Mat Min Exi Min Mat Gar Mat Gar Mat Gar Fac Was Fac Gar Fac Was Fac Gar Fac Gar Fac Gar Res Gar Res Qua Frg Traps Triggered 36 | . 1 . 2 . . . 1 1 . . . 1 1 . 3 2 1 . . 1 . 4 . 8 . 3 6 . 1 Indirectly . | . . . . . . . . . . . . . . . . . . . . . . . . . . . . . . Trap Hack Attempts 37 | . . . . . . . 25 . 12 . . . . . . . . . . . . . . . . . . . . Triggered . | . . . . . . . . . . . . . . . . . . . . . . . . . . . . . . Disarmed 5 | . . . . . . . 4 . 1 . . . . . . . . . . . . . . . . . . . . Reprogrammed 2 | . . . . . . . . . 2 . . . . . . . . . . . . . . . . . . . . Reused . | . . . . . . . . . . . . . . . . . . . . . . . . . . . . . . Traps Extracted . | . . . . . . . . . . . . . . . . . . . . . . . . . . . . . . Installed . | . . . . . . . . . . . . . . . . . . . . . . . . . . . . . . Triggered . | . . . . . . . . . . . . . . . . . . . . . . . . . . . . . . Machines | -11 -10 -10 -9 -9 -9 -8 -8 -8 -8 -8 -8 -8 -7 -7 -7 -7 -6 -6 -6 -6 -5 -5 -4 -4 -3 -3 -2 -2 -2 ---------- Run | Yrd Mat Min Mat Min Exi Min Mat Gar Mat Gar Mat Gar Fac Was Fac Gar Fac Was Fac Gar Fac Gar Fac Gar Res Gar Res Qua Frg Machines Disabled 78 | . 2 . 1 . . . . 1 2 4 . 5 1 . 4 4 1 . 5 8 6 7 . 6 . 10 6 4 1 Max in Single Turn 2 | . 1 . 1 . . . . 1 2 1 . 1 1 . 1 1 1 . . 1 2 1 . 1 . 1 1 1 1 Garrison Access 7 | . . . . . . . . . . . . . 2 . . . 1 . . . . . . . . . 3 1 . Garrison Relay 29 | . . . . . . . . 1 . 2 . 2 . . . 4 . . . 5 . 5 . 5 . 5 . . . Machines Repaired . | . . . . . . . . . . . . . . . . . . . . . . . . . . . . . . Machines Dismantled . | . . . . . . . . . . . . . . . . . . . . . . . . . . . . . . Machines Sabotaged . | . . . . . . . . . . . . . . . . . . . . . . . . . . . . . . Overloaded Fab Kills . | . . . . . . . . . . . . . . . . . . . . . . . . . . . . . . Hacking | -11 -10 -10 -9 -9 -9 -8 -8 -8 -8 -8 -8 -8 -7 -7 -7 -7 -6 -6 -6 -6 -5 -5 -4 -4 -3 -3 -2 -2 -2 --------- Run | Yrd Mat Min Mat Min Exi Min Mat Gar Mat Gar Mat Gar Fac Was Fac Gar Fac Was Fac Gar Fac Gar Fac Gar Res Gar Res Qua Frg Machines Accessed 117 | . 9 . 10 2 2 . 12 3 16 2 2 4 6 . 5 3 2 . 4 3 2 2 2 3 3 1 13 6 . Terminals 78 | . 7 . 6 . . . 8 3 11 2 1 4 3 . 3 3 1 . 2 3 . 2 1 3 2 1 8 4 . Fabricators 3 | . . . . . . . . . . . . . 1 . . . . . . . 1 . . . . . 1 . . Repair Stations 10 | . 1 . 1 . . . 2 . 2 . . . . . 1 . . . 1 . . . . . . . 1 1 . Recycling Units 6 | . 1 . 2 . . . 1 . 2 . . . . . . . . . . . . . . . . . . . . Scanalyzers 1 | . . . 1 . . . . . . . . . . . . . . . . . . . . . . . . . . Garrison Access 15 | . . . . . . . 1 . 1 . 1 . 2 . 1 . 1 . 1 . 1 . 1 . 1 . 3 1 . Total Hacks 278 | . 19 . 23 2 2 . 38 7 57 3 3 11 17 . 8 5 5 . 5 7 5 5 2 7 6 2 27 12 . Successful 139 | . 9 . 15 2 2 . 23 1 37 1 2 4 6 . 3 2 4 . 3 2 4 1 1 3 1 1 10 2 . Failed 139 | . 10 . 8 . . . 15 6 20 2 1 7 11 . 5 3 1 . 2 5 1 4 1 4 5 1 17 10 . Catastrophic 33 | . 4 . . . . . 2 . . . 1 . 2 . 3 1 . . 2 1 . 1 1 1 3 1 4 6 . Database Lockouts . | . . . . . . . . . . . . . . . . . . . . . . . . . . . . . . Manual 131 | . 16 . 16 . 1 . 25 3 27 2 1 1 10 . 3 . 1 . 1 . 2 . . . 4 . 7 11 . Terminals 197 | . 15 . 18 . . . 27 7 42 3 1 11 8 . 4 5 2 . 2 7 . 5 1 7 3 2 19 8 . Fabricators 8 | . . . . . . . . . . . . . 4 . . . . . . . 2 . . . . . 2 . . Repair Stations 28 | . 3 . 2 . . . 8 . 8 . . . . . 3 . . . 1 . . . . . . . 1 2 . Recycling Units 7 | . 1 . 2 . . . 1 . 3 . . . . . . . . . . . . . . . . . . . . Scanalyzers 1 | . . . 1 . . . . . . . . . . . . . . . . . . . . . . . . . . Garrison Access 33 | . . . . . . . 2 . 4 . 2 . 5 . 1 . 3 . 2 . 3 . 1 . 3 . 5 2 . Terminal Hacks 47 | . 2 . 4 2 2 . 5 1 14 1 . 3 . . . 2 1 . . 2 . 1 . 3 . 1 2 1 . Record 1 | . . . . . 1 . . . . . . . . . . . . . . . . . . . . . . . . Part Schematic 2 | . . . . . . . . . 2 . . . . . . . . . . . . . . . . . . . . Robot Schematic 2 | . 1 . . . . . 1 . . . . . . . . . . . . . . . . . . . . . . Robot Analysis 3 | . . . 2 . . . 1 . . . . . . . . . . . . . . . . . . . . . . Prototype ID Bank 6 | . 1 . . . . . . . 4 . . . . . . . 1 . . . . . . . . . . . . Open Door 5 | . . . . 2 . . . . . . . . . . . . . . . 1 . . . 1 . . 1 . . Branch Access Points 1 | . . . 1 . . . . . . . . . . . . . . . . . . . . . . . . . . Emergency Access Points 4 | . . . . . . . . . . . . 1 . . . . . . . 1 . . . 1 . 1 . . . Terminal Index 1 | . . . . . . . . . 1 . . . . . . . . . . . . . . . . . . . . Alert Level 1 | . . . . . . . 1 . . . . . . . . . . . . . . . . . . . . . . Unreport Threat 7 | . . . 1 . . . 1 . 3 . . . . . . . . . . . . . . . . . 1 1 . Locate Traps 1 | . . . . . . . . . 1 . . . . . . . . . . . . . . . . . . . . Patrol Status 1 | . . . . . . . . . 1 . . . . . . . . . . . . . . . . . . . . Hauler Manifests 1 | . . . . . . . . . 1 . . . . . . . . . . . . . . . . . . . . Zone Layout 2 | . . . . . . . 1 . 1 . . . . . . . . . . . . . . . . . . . . Garrison Registry 6 | . . . . . . . . 1 . 1 . 1 . . . 1 . . . . . 1 . 1 . . . . . Patrol Navigation 1 | . . . . . . . . . . . . 1 . . . . . . . . . . . . . . . . . Security Stations 1 | . . . . . . . . . . . . . . . . 1 . . . . . . . . . . . . . Proto ID Catalog 1 | . . . . . 1 . . . . . . . . . . . . . . . . . . . . . . . . Fabricator Hacks 7 | . . . . . . . . . . . . . 3 . . . . . . . 2 . . . . . 2 . . Network Status 1 | . . . . . . . . . . . . . 1 . . . . . . . . . . . . . . . . Load Schematic 3 | . . . . . . . . . . . . . 1 . . . . . . . 1 . . . . . 1 . . Build 3 | . . . . . . . . . . . . . 1 . . . . . . . 1 . . . . . 1 . . Repair Station Hacks 18 | . 1 . 2 . . . 8 . 6 . . . . . 1 . . . . . . . . . . . . . . Scan Component 10 | . 1 . 1 . . . 4 . 3 . . . . . 1 . . . . . . . . . . . . . . Repair 8 | . . . 1 . . . 4 . 3 . . . . . . . . . . . . . . . . . . . . Recycling Unit Hacks 1 | . . . . . . . . . 1 . . . . . . . . . . . . . . . . . . . . Retrieve Components 1 | . . . . . . . . . 1 . . . . . . . . . . . . . . . . . . . . Scanalyzer . | . . . . . . . . . . . . . . . . . . . . . . . . . . . . . . Garrison Access Hacks 20 | . . . . . . . 1 . 2 . 2 . 2 . 1 . 2 . 2 . 1 . 1 . 1 . 4 1 . Unlock Access 8 | . . . . . . . 1 . 1 . 1 . . . 1 . . . 1 . 1 . 1 . 1 . . . . Seal Access 7 | . . . . . . . . . . . . . 2 . . . 1 . . . . . . . . . 3 1 . Coupler Status 5 | . . . . . . . . . 1 . 1 . . . . . 1 . 1 . . . . . . . 1 . . Unauthorized Hacks 46 | . 6 . 9 . . . 9 . 14 . . 1 1 . 1 . 1 . 1 . 1 . . . . . 2 . . Terminals 32 | . 5 . 7 . . . 7 . 11 . . 1 . . . . . . . . . . . . . . 1 . . Assimilate 4 | . . . . . . . 1 . 3 . . . . . . . . . . . . . . . . . . . . Botnet 5 | . . . 1 . . . 1 . 1 . . 1 . . . . . . . . . . . . . . 1 . . Operators 2 | . . . 1 . . . . . 1 . . . . . . . . . . . . . . . . . . . . Skim 21 | . 5 . 5 . . . 5 . 6 . . . . . . . . . . . . . . . . . . . . Fabricators . | . . . . . . . . . . . . . . . . . . . . . . . . . . . . . . Repair Stations 3 | . . . . . . . . . . . . . . . 1 . . . 1 . . . . . . . 1 . . Mechanics 3 | . . . . . . . . . . . . . . . 1 . . . 1 . . . . . . . 1 . . Recycling Units 6 | . 1 . 2 . . . 1 . 2 . . . . . . . . . . . . . . . . . . . . Tunnel 6 | . 1 . 2 . . . 1 . 2 . . . . . . . . . . . . . . . . . . . . Scanalyzers . | . . . . . . . . . . . . . . . . . . . . . . . . . . . . . . Garrison Access 5 | . . . . . . . 1 . 1 . . . 1 . . . 1 . . . 1 . . . . . . . . Restock 3 | . . . . . . . . . . . . . 1 . . . 1 . . . 1 . . . . . . . . Reprogram 2 | . . . . . . . 1 . 1 . . . . . . . . . . . . . . . . . . . . Data Cores Recovered 1 | . . . 1 . . . . . . . . . . . . . . . . . . . . . . . . . . Used . | . . . . . . . . . . . . . . . . . . . . . . . . . . . . . . Hacking Detections 96 | . 8 . 8 . . . 9 3 13 1 1 4 5 . 5 3 1 . 4 3 2 2 2 3 3 1 9 6 . Full Trace Events 17 | . 1 . . . . . 2 1 . . . 1 1 . . 1 . . . 2 2 2 . 1 1 1 . 1 . Feedback Events 2 | . . . . . . . 1 . . . . 1 . . . . . . . . . . . . . . . . . Corruption 2 | . . . . . . . 1 . . . . 1 . . . . . . . . . . . . . . . . . Feedback Blocked . | . . . . . . . . . . . . . . . . . . . . . . . . . . . . . . Robot Schematics Acquired 2 | . 1 . . . . . 1 . . . . . . . . . . . . . . . . . . . . . . Robots Built 2 | . . . . . . . . . . . . . . . . . . . . . 1 . . . . . 1 . . Authchips 1 | . . . . . . . . . . . . . . . . . . . . . . . . . . . 1 . . Time 174 | . . . . . . . . . . . . . . . . . . . . . 58 . . . . . 116 . . Total Robot Build Rating 6 | . . . . . . . . . . . . . . . . . . . . . 3 . . . . . 3 . . Part Schematics Acquired 2 | . . . . . . . . . 2 . . . . . . . . . . . . . . . . . . . . Parts Built 1 | . . . . . . . . . . . . . 1 . . . . . . . . . . . . . . . . Authchips . | . . . . . . . . . . . . . . . . . . . . . . . . . . . . . . Time 51 | . . . . . . . . . . . . . 51 . . . . . . . . . . . . . . . . Total Part Build Rating 1 | . . . . . . . . . . . . . 1 . . . . . . . . . . . . . . . . Parts Repaired 8 | . . . 1 . . . 4 . 3 . . . . . . . . . . . . . . . . . . . . Time 299 | . . . 32 . . . 159 . 108 . . . . . . . . . . . . . . . . . . . . Parts Recycled . | . . . . . . . . . . . . . . . . . . . . . . . . . . . . . . Recycled Matter . | . . . . . . . . . . . . . . . . . . . . . . . . . . . . . . Retrieved Matter . | . . . . . . . . . . . . . . . . . . . . . . . . . . . . . . Retrieved Components 9 | . . . . . . . . . 9 . . . . . . . . . . . . . . . . . . . . Parts Scanalyzed . | . . . . . . . . . . . . . . . . . . . . . . . . . . . . . . Part Schematics Acquired . | . . . . . . . . . . . . . . . . . . . . . . . . . . . . . . Parts Damaged . | . . . . . . . . . . . . . . . . . . . . . . . . . . . . . . Bothacking | -11 -10 -10 -9 -9 -9 -8 -8 -8 -8 -8 -8 -8 -7 -7 -7 -7 -6 -6 -6 -6 -5 -5 -4 -4 -3 -3 -2 -2 -2 ------------ Run | Yrd Mat Min Mat Min Exi Min Mat Gar Mat Gar Mat Gar Fac Was Fac Gar Fac Was Fac Gar Fac Gar Fac Gar Res Gar Res Qua Frg Used RIF Installer 10 | . . . . . . . . 1 . 2 . 1 . . . 2 . . . 1 . 1 . 1 . 1 . . . Command Fork 1 | . . . . . . . . . . . . . . . . . . . . . . 1 . . . . . . . Signal Jammer 1 | . . . . . . . . . . . . . . . . 1 . . . . . . . . . . . . . Zone Cloak 1 | . . . . . . . . . . . . . . . . 1 . . . . . . . . . . . . . Robot Detection 1 | . . . . . . . . . . 1 . . . . . . . . . . . . . . . . . . . Patrol Navigation 1 | . . . . . . . . . . . . . . . . . . . . 1 . . . . . . . . . Alert ID Control 1 | . . . . . . . . . . 1 . . . . . . . . . . . . . . . . . . . Autooverride 1 | . . . . . . . . . . . . . . . . . . . . . . . . . . 1 . . . Autoassimilate 1 | . . . . . . . . . . . . 1 . . . . . . . . . . . . . . . . . Crosswire 1 | . . . . . . . . . . . . . . . . . . . . . . . . 1 . . . . . Robots Hacked 197 | . . . . . . . 2 . 1 3 . 5 1 7 7 12 4 6 6 16 11 9 6 18 5 21 47 7 3 Non-combat 22 | . . . . . . . 2 . 1 . . . . . 4 . 1 . 1 . 3 . 1 . 1 . 7 1 . Combat 175 | . . . . . . . . . . 3 . 5 1 7 3 12 3 6 5 16 8 9 5 18 4 21 40 6 3 Autooverrided 13 | . . . . . . . . . . . . . . . . . . . . . . . . . . . 9 2 2 Autoassimilated 32 | . . . . . . . . . . . . . . . 1 4 1 . . 6 . . 1 3 . 5 10 . 1 Robot Hacks Applied 190 | . . . . . . . 2 . 2 3 . 5 1 7 12 9 3 7 8 10 17 9 10 15 5 17 38 10 . parse_system 14 | . . . . . . . 1 . . . . . . 1 2 1 . 1 . . 3 . . 1 . 1 3 . . find_chute 1 | . . . . . . . . . . . . . . . . . 1 . . . . . . . . . . . . drop_inventory 5 | . . . . . . . . . . . . . . . 1 . . . . . . . . . 1 . 3 . . find_station 1 | . . . . . . . 1 . . . . . . . . . . . . . . . . . . . . . . purge_threat 24 | . . . . . . . . . 2 . . . . . 5 . . . . . 3 . 5 . . . 4 5 . block_reporting 3 | . . . . . . . . . . . . . . . 1 . . . 1 . . . . . . . . 1 . disable_scanner 1 | . . . . . . . . . . . . . . . . . . . . . . . . . . . . 1 . ignore_targets 12 | . . . . . . . . . . . . . . 6 . . . 6 . . . . . . . . . . . find_shortcuts 1 | . . . . . . . . . . . . . 1 . . . . . . . . . . . . . . . . find_garrison 5 | . . . . . . . . . . . . . . . 1 . . . 1 . 1 . . . 1 . 1 . . link_fov 2 | . . . . . . . . . . . . . . . . . . . . . . . . . . 2 . . . scatter_targeting 3 | . . . . . . . . . . . . . . . . . . . 1 . 1 . . . . . 1 . . mark_system 1 | . . . . . . . . . . . . . . . . . . . . . . . . . . . 1 . . overload_power 1 | . . . . . . . . . . . . . . . . 1 . . . . . . . . . . . . . amplify_resonance 42 | . . . . . . . . . . 2 . 3 . . . 4 . . 1 3 . 4 . 4 2 9 7 3 . reboot_system 1 | . . . . . . . . . . . . . . . . . . . . . . . . . . . 1 . . go_dormant 1 | . . . . . . . . . . . . . . . . 1 . . . . . . . . . . . . . overwrite_iff 28 | . . . . . . . . . . 1 . 1 . . . . 1 . 1 2 3 2 . 1 1 5 10 . . formatsys_low 8 | . . . . . . . . . . . . . . . 2 . . . 1 . 2 . 1 . . . 2 . . formatsys_high 36 | . . . . . . . . . . . . 1 . . . 2 1 . 2 5 4 3 4 9 . . 5 . . Relay Couplers Released 136 | . . . . . . . . 3 . 8 . 9 4 . 4 14 . . . 22 4 19 . 17 . 24 6 2 . Machine Destruction 117 | . . . . . . . . 3 . 8 . 9 . . . 14 . . . 22 . 19 . 17 . 20 3 2 . Programmers 19 | . . . . . . . . . . . . . 4 . 4 . . . . . 4 . . . . 4 3 . . Attached 78 | . . . . . . . . . 1 2 . 4 . . 4 5 . 1 3 10 3 5 6 7 . 7 11 9 . Crosswired 12 | . . . . . . . . . . . . . . . . . . . . . . . . 3 2 5 1 1 . Fabnet Peak Effective % . | . . . . . . . . . . . . . . . . . . . . . . . . . . . . . . Robots Rewired 11 | . . . . . . . . . . . . . . . . 6 . . . 3 . . . . . 2 . . . Allies Hacked 6 | . . . . . . . . . . 1 . . . . 2 . . . . . 1 . . . . . 2 . . Hacks Repelled . | . . . . . . . . . . . . . . . . . . . . . . . . . . . . . . Allies | -11 -10 -10 -9 -9 -9 -8 -8 -8 -8 -8 -8 -8 -7 -7 -7 -7 -6 -6 -6 -6 -5 -5 -4 -4 -3 -3 -2 -2 -2 -------- Run | Yrd Mat Min Mat Min Exi Min Mat Gar Mat Gar Mat Gar Fac Was Fac Gar Fac Was Fac Gar Fac Gar Fac Gar Res Gar Res Qua Frg Total Allies 175 | . . 2 . 4 . . 2 . 5 1 1 3 . 20 3 12 3 1 4 18 10 5 6 18 1 12 39 2 3 Largest Group 19 | . . 2 2 3 3 3 1 2 4 4 1 1 . 19 17 9 8 3 3 7 7 4 5 11 8 9 4 1 1 Highest-Rated Group 513 | . . 42 42 40 40 40 10 25 120 46 16 16 . 465 395 259 246 93 87 425 425 147 234 513 399 424 232 58 264 Highest-Rated Ally 264 | . . 31 31 31 16 16 10 15 90 16 16 16 . 35 31 32 32 32 41 116 116 49 56 116 56 116 116 58 264 Total Orders 49 | . . . . . . . 2 8 10 7 1 1 . . . 2 . . 1 2 1 5 . 4 . 2 3 . . STAY 23 | . . . . . . . 1 4 5 4 . . . . . 1 . . 1 1 . 3 . 2 . 1 . . . FOLLOW 19 | . . . . . . . 1 4 4 3 . . . . . 1 . . . 1 . 2 . 2 . 1 . . . AID 4 | . . . . . . . . . . . . . . . . . . . . . 1 . . . . . 3 . . RETURN 3 | . . . . . . . . . 1 . 1 1 . . . . . . . . . . . . . . . . . Ally Attacks 1073 | . . 1 40 25 . 13 . 4 8 11 17 15 . 29 234 35 55 8 20 70 91 40 22 66 47 88 123 4 7 Total Damage 27688 | . . 21 563 334 . 145 . 26 57 148 100 102 . 538 3037 802 1986 192 604 1849 3635 1195 668 1851 1159 3592 4575 117 392 Kills 189 | . . . 12 3 . 2 . 1 1 3 3 1 . . 28 6 19 . 7 10 24 6 . 13 6 19 23 . 2 Allies Corrupted 10 | . . . . . . . . . . . . . . . 1 1 . 1 . . 4 . . . . . 3 . . Allies Melted 7 | . . . . . . . . . . . . . . . 1 1 . . . . . . . 3 . 1 1 . . Intel | -11 -10 -10 -9 -9 -9 -8 -8 -8 -8 -8 -8 -8 -7 -7 -7 -7 -6 -6 -6 -6 -5 -5 -4 -4 -3 -3 -2 -2 -2 ------- Run | Yrd Mat Min Mat Min Exi Min Mat Gar Mat Gar Mat Gar Fac Was Fac Gar Fac Was Fac Gar Fac Gar Fac Gar Res Gar Res Qua Frg Active Infowar (turns) 2274 | . . . . . . . . . . . . . . . 785 97 . . . 162 2 . . . . . 384 313 531 Jamming 2271 | . . . . . . . . . . . . . . . 785 97 . . . 162 . . . . . . 383 313 531 ECM 3 | . . . . . . . . . . . . . . . . . . . . . 2 . . . . . 1 . . Robot Analysis Total 3 | . . . 2 . . . 1 . . . . . . . . . . . . . . . . . . . . . . Derelict Logs Recovered 2 | . . 1 . 1 . . . . . . . . . . . . . . . . . . . . . . . . . Drone Launches 42 | . . . . . . . . . 10 3 16 13 . . . . . . . . . . . . . . . . . Drone Recoveries 38 | . . . . . . . . . 10 3 15 10 . . . . . . . . . . . . . . . . . Exploration | -11 -10 -10 -9 -9 -9 -8 -8 -8 -8 -8 -8 -8 -7 -7 -7 -7 -6 -6 -6 -6 -5 -5 -4 -4 -3 -3 -2 -2 -2 ------------- Run | Yrd Mat Min Mat Min Exi Min Mat Gar Mat Gar Mat Gar Fac Was Fac Gar Fac Was Fac Gar Fac Gar Fac Gar Res Gar Res Qua Frg Turns Passed 43991 | 109 1935 1247 3132 1686 545 681 3408 1266 3083 829 706 1751 1231 1029 1666 1568 569 628 1066 1691 1258 1753 267 1380 521 1943 4669 1326 1048 Spaces Moved 18566 | 72 847 405 966 587 225 270 1082 594 1587 389 260 911 519 394 889 711 309 203 432 798 533 608 98 749 207 760 2324 492 345 Core 59 | 15 . . . . . . . . . . . . . . . . . . . . . . . . . . . . 44 Treads 18488 | 57 847 405 966 587 225 270 1082 594 1587 389 260 911 519 394 889 711 309 203 432 798 533 608 98 749 207 760 2324 492 282 Legs 19 | . . . . . . . . . . . . . . . . . . . . . . . . . . . . . 19 Wheels . | . . . . . . . . . . . . . . . . . . . . . . . . . . . . . . Hover . | . . . . . . . . . . . . . . . . . . . . . . . . . . . . . . Flight . | . . . . . . . . . . . . . . . . . . . . . . . . . . . . . . Fastest Speed 50 | 50 160 240 160 240 240 160 166 166 155 160 160 155 155 160 160 160 160 160 160 160 160 160 233 150 233 150 150 158 50 Average Speed 188 | 137 190 240 226 240 240 239 244 171 160 160 160 161 190 191 160 160 160 217 212 160 196 208 233 165 233 205 165 212 209 Slowest Speed 500 | 160 240 240 240 240 240 240 246 246 166 160 160 240 236 236 160 160 160 240 240 160 240 240 233 233 233 233 241 248 500 Overloaded Moves . | . . . . . . . . . . . . . . . . . . . . . . . . . . . . . . Propulsion Burnouts . | . . . . . . . . . . . . . . . . . . . . . . . . . . . . . . Robots Hopped 1 | . . . . . . . . . . . . . . . . . . . . . . . . . . . 1 . . Potential Cave-ins . | . . . . . . . . . . . . . . . . . . . . . . . . . . . . . . Cave-ins Triggered . | . . . . . . . . . . . . . . . . . . . . . . . . . . . . . . Exploration Rate (%) 58 | 5 96 95 83 99 61 85 74 86 97 57 14 84 17 89 29 81 11 90 17 88 15 65 2 78 6 88 60 58 12 Regions Visited 29 Branch Regions 6 Pre-discovered Areas 11 | . 1 . 2 . 1 . 3 . 4 . . . . . . . . . . . . . . . . . . . . Known Exits Taken 11 | . . . 1 . . 1 1 . 1 . 1 . . . 1 . . . 1 . 1 . 1 . 1 . 1 . . Unknown Exits Taken 6 | 1 1 1 . 1 1 . . . . . . . . . . . . . . . . . . . . . . 1 . Scrap Searched 5 | . . 2 . 2 . 1 . . . . . . . . . . . . . . . . . . . . . . . Spaces Dug 41 | . . . . . . . 3 . 1 . 1 3 . . 1 . . . 2 . 9 2 . . . 1 14 2 2 Terrain Destroyed 518 | . . . . . . . 3 23 4 56 5 105 . . 1 73 6 . 5 1 28 33 . . . 8 112 35 20 Melee 9 | . . . . . . . 3 . 1 . 1 3 . . 1 . . . . . . . . . . . . . . Projectile 204 | . . . . . . . . . . . 4 3 . . . . . . 5 1 15 18 . . . 8 98 35 17 AOE 305 | . . . . . . . . 23 3 56 . 99 . . . 73 6 . . . 13 15 . . . . 14 . 3 Terrain Rammed . | . . . . . . . . . . . . . . . . . . . . . . . . . . . . . . Walls Destroyed . | . . . . . . . . . . . . . . . . . . . . . . . . . . . . . . Machines Disabled . | . . . . . . . . . . . . . . . . . . . . . . . . . . . . . . Actions | -11 -10 -10 -9 -9 -9 -8 -8 -8 -8 -8 -8 -8 -7 -7 -7 -7 -6 -6 -6 -6 -5 -5 -4 -4 -3 -3 -2 -2 -2 --------- Run | Yrd Mat Min Mat Min Exi Min Mat Gar Mat Gar Mat Gar Fac Was Fac Gar Fac Was Fac Gar Fac Gar Fac Gar Res Gar Res Qua Frg Total 25317 | 79 1034 667 1772 839 232 283 1609 708 1946 508 519 1084 673 546 1076 970 374 306 537 1063 702 928 125 856 245 1151 3118 771 596 Wait 3266 | . 54 255 683 221 . 2 329 25 202 38 233 57 73 42 93 73 40 24 39 94 80 84 . 13 24 190 156 54 88 Move 18544 | 72 846 404 965 586 224 269 1082 593 1587 388 260 910 519 393 889 710 309 202 432 797 532 607 98 748 206 759 2321 491 345 Hop 1 | . . . . . . . . . . . . . . . . . . . . . . . . . . . 1 . . Pick Up 231 | 1 24 . 12 3 2 . 8 3 7 4 1 9 8 10 9 16 2 2 2 11 6 25 . 10 3 27 14 3 9 Fast Attach 154 | 6 4 . 4 . . . 5 1 6 4 3 5 2 6 4 7 2 6 3 12 8 18 . 1 . 4 27 4 12 Attach 125 | . 1 . 3 . . 1 5 1 5 1 . 5 5 1 2 7 2 2 5 2 3 11 3 7 1 3 15 16 18 Detach 57 | . . . . . . . 2 . 2 2 . 3 . . 2 3 2 4 4 5 . 6 . 4 . 1 7 8 2 Swap 321 | . 9 . 12 6 2 . 20 19 19 17 4 19 12 7 15 22 3 11 10 11 8 24 5 16 . 15 26 6 3 Drop 246 | . 15 . 16 7 4 . 14 . 11 3 1 10 6 18 10 14 1 8 3 12 11 23 . 1 2 27 26 1 2 Fire 2146 | . 75 5 70 13 . 11 107 47 82 41 11 60 42 64 43 117 12 47 31 110 50 121 15 47 8 125 503 183 106 Melee 48 | . . . . . . . 7 16 3 9 2 4 . 5 2 . . . . . . . . . . . . . . Ram 7 | . . . . . . . . . . . . . . . . . . . . . . . . . . . . . 7 Kick 1 | . . . . . . . . . . . . . . . . . . . . . . . . . . . . . 1 Crush 96 | . 6 3 7 3 . . 5 1 10 . 4 1 6 . 3 1 1 . 7 3 1 1 1 1 1 . 22 5 3 Escape Stasis 16 | . . . . . . . . 2 . . . . . . 2 . . . . 2 . 8 . 2 . . . . . Rewire 21 | . . . . . . . . . . 1 . 1 . . 2 . . . 1 4 3 . 3 6 . . . . . Trap 37 | . . . . . . . 25 . 12 . . . . . . . . . . . . . . . . . . . . Miscellaneous . | . . . . . . . . . . . . . . . . . . . . . . . . . . . . . . Route ------- -11/Scrapyard -10/Materials (discovered 5 exits: *Mat x3 / [*Min x2]) -10/Mines (discovered 2 exits: *Mat x2) -9/Materials (discovered 4 exits: *Mat x3 / *Min) -9/Mines (discovered 3 exits: *Mat x2 / *Exi) -9/Exiles (discovered 2 exits: [*Min x2]) -8/Mines (discovered 2 exits: *Mat x2) -8/Materials (discovered 4 exits: *Fac x3 / Gar) -8/Garrison (discovered 3 exits: *Mat x3) -8/Materials (discovered 4 exits: *Fac x3 / Gar) -8/Garrison (discovered 4 exits: Fac x3 / *Mat) -8/Materials -8/Garrison (discovered 3 exits: *Fac x3) -7/Factory (discovered 7 exits: *Fac x4 / *Sto x2 / Low) -7/Waste -7/Factory (discovered 3 exits: *Sto x2 / Gar) -7/Garrison (discovered 3 exits: *Fac x3) -6/Factory -6/Waste -6/Factory (discovered 3 exits: *Fac / [*Low] / Gar) -6/Garrison (discovered 3 exits: *Fac x3) -5/Factory (discovered 4 exits: *Fac / [*Upp] / Ext / Gar) -5/Garrison (discovered 3 exits: *Fac x3) -4/Factory -4/Garrison (discovered 3 exits: *Res x3) -3/Research -3/Garrison (discovered 2 exits: *Res x2) -2/Research (discovered 2 exits: *Acc / *Qua) -2/Quarantine (discovered 3 exits: *Acc / [*Sec] / [*Frg]) -2/Protoforge (discovered 1 exit: *Acc) History --------- Turn | Location | Event 3 | -11/Scrapyard | Discovered new exit (range 16) 110 | -11/Scrapyard | Entered Materials 315 | -10/Materials | Build established: Mutant 413 | -10/Materials | Discovered new exit (range 12) 414 | -10/Materials | Destroyed 7 combat bots 646 | -10/Materials | Discovered new exit (range 10) 934 | -10/Materials | Discovered new exit (range 14) 1329 | -10/Materials | Discovered new exit (range 9) 1418 | -10/Materials | Discovered new exit (range 15) 2045 | -10/Materials | Entered Mines 2061 | -10/Mines | Assembled infested the area 2421 | -10/Mines | Learned Materials emergency access door positions 2781 | -10/Mines | Discovered new exit (range 12) 2873 | -10/Mines | Found a hidden stash of uninstalled traps 3278 | -10/Mines | Discovered new exit (range 4) 3292 | -10/Mines | Entered Materials 3292 | -9/Materials | Accompanied by 2 allies 3292 | -9/Materials | Evolved 2 slots: Propulsion x1, Utility x1 3297 | -9/Materials | Led the pair of lost Derelicts to an unsafe place 3740 | -9/Materials | Discovered new exit (range 12) 4330 | -9/Materials | Identified exit to Mines 4360 | -9/Materials | Discovered new exit (range 4) 4443 | -9/Materials | Repaired Med. Armor Plating 4559 | -9/Materials | Build established: Scavenger-Mutant 4881 | -9/Materials | Build established: Mutant 5896 | -9/Materials | Identified exit to Materials 6032 | -9/Materials | Loaded intel: 20 trap records 6087 | -9/Materials | Learned location of 3 exits from Materials 6261 | -9/Materials | Learned 2 Storage zone layouts 6315 | -9/Materials | Learned 2 Storage zone layouts 6424 | -9/Materials | Entered Mines 6472 | -9/Mines | Learned Materials non-interactive machine intel 6617 | -9/Mines | Met a Derelict testing a Signal Generator 6969 | -9/Mines | Met a Derelict who couldn't figure out how to use a Trap Extractor 7380 | -9/Mines | Assisted by bots powering up and referring to "LRC-V3" 7448 | -9/Mines | Found the Drone Emporium 7457 | -9/Mines | Found Prototype Device 7458 | -9/Mines | Identified Splice Drone Bay 8099 | -9/Mines | Deemed a non-threat by the Exiles lab entrance 8099 | -9/Mines | Discovered new exit (range 5) 8110 | -9/Mines | Entered Exiles 8110 | -9/Exiles | Accompanied by 3 allies 8146 | -9/Exiles | Discovered new exit (range 15) 8175 | -9/Exiles | Met 8R-AWN 8206 | -9/Exiles | Met EX-HEX 8276 | -9/Exiles | Met EX-BIN 8317 | -9/Exiles | Aligned with FarCom system 8319 | -9/Exiles | Given EX-Vault access code 8379 | -9/Exiles | Opened EX-Vault 8411 | -9/Exiles | Found Firepult 8428 | -9/Exiles | Found Latent Energy Streamer 8472 | -9/Exiles | Warned to stay clear of 0b10 Research branches 8547 | -9/Exiles | Met EX-DEC 8561 | -9/Exiles | Learned location of Zion (-6) 8631 | -9/Exiles | Discovered new exit (range 12) 8655 | -9/Exiles | Stole two prototypes: Latent Energy Streamer, Firepult 8655 | -9/Exiles | Entered Mines 8655 | -8/Mines | Accompanied by 3 allies 9195 | -8/Mines | Discovered exit to Materials (range 10) 9336 | -8/Mines | Entered Materials 9336 | -8/Materials | Evolved 2 slots: Utility x2 9337 | -8/Materials | Identified exit to Factory 9338 | -8/Materials | Loaded intel: 38 non-interactive machine locations 9651 | -8/Materials | Build established: Scavenger-Mutant 10352 | -8/Materials | Build established: Mutant 11218 | -8/Materials | Repaired Cooling System 11270 | -8/Materials | Repaired Cld. Ion Engine 11304 | -8/Materials | Repaired Spread Laser 12107 | -8/Materials | Learned 8 Factory zone layouts 12166 | -8/Materials | Learned Factory stockpile data 12208 | -8/Materials | Repaired Broken Cooling System 12214 | -8/Materials | Learned location of Lower Caves (-6) 12253 | -8/Materials | Learned location of 1 exit from Extension 12302 | -8/Materials | Learned Storage emergency access door positions 12330 | -8/Materials | Learned Factory trap positions 12741 | -8/Materials | Identified exit to Garrison 12744 | -8/Materials | Entered Garrison 12744 | -8/Garrison | Accompanied by 2 allies 12784 | -8/Garrison | Triggered checkpoint 12914 | -8/Garrison | Triggered checkpoint 12930 | -8/Garrison | Triggered checkpoint 12961 | -8/Garrison | Triggered checkpoint 12982 | -8/Garrison | Triggered checkpoint 13156 | -8/Garrison | Triggered checkpoint 13190 | -8/Garrison | Garrison Relay disabled 13228 | -8/Garrison | Discovered new exit (range 15) 13509 | -8/Garrison | Discovered new exit (range 11) 13772 | -8/Garrison | Triggered checkpoint 13835 | -8/Garrison | Discovered new exit (range 62) 13835 | -8/Garrison | Discovered new exit (range 37) 13835 | -8/Garrison | Discovered new exit (range 25) 13985 | -8/Garrison | Installed Relay Interface Framework 14010 | -8/Garrison | Entered Materials 14010 | -8/Materials | Accompanied by 1 ally 14573 | -8/Materials | Discovered exit to Factory (range 3) 14809 | -8/Materials | Learned location of 3 exits from Factory 15027 | -8/Materials | Learned location of 3 exits from Factory 15061 | -8/Materials | Learned location of 1 exit from Recycling 16045 | -8/Materials | Garrison activated, responded to threat 16061 | -8/Materials | Core integrity fell below 50% 16402 | -8/Materials | Repaired Cooling System 16979 | -8/Materials | Repaired Spread Laser 17024 | -8/Materials | Repaired Med. Treads 17091 | -8/Materials | Identified exit to Garrison 17093 | -8/Materials | Entered Garrison 17093 | -8/Garrison | Accompanied by 4 allies 17113 | -8/Garrison | Discovered exit to Factory (range 69) 17113 | -8/Garrison | Discovered exit to Factory (range 89) 17113 | -8/Garrison | Discovered exit to Factory (range 66) 17113 | -8/Garrison | Discovered new exit (range 81) 17137 | -8/Garrison | Triggered checkpoint 17154 | -8/Garrison | Expanded RIF knowledge: Alert ID Control 17257 | -8/Garrison | Triggered checkpoint 17261 | -8/Garrison | Triggered checkpoint 17335 | -8/Garrison | Triggered checkpoint 17537 | -8/Garrison | Triggered checkpoint 17585 | -8/Garrison | Triggered checkpoint 17595 | -8/Garrison | Garrison Relay disabled 17698 | -8/Garrison | Expanded RIF knowledge: Robot Detection 17801 | -8/Garrison | Triggered checkpoint 17860 | -8/Garrison | Garrison Relay disabled 17875 | -8/Garrison | Triggered checkpoint 17922 | -8/Garrison | Entered Materials 18325 | -8/Materials | Garrison activated, responded to threat 18628 | -8/Materials | Identified exit to Garrison 18628 | -8/Materials | Entered Garrison 18887 | -8/Garrison | Triggered checkpoint 18921 | -8/Garrison | Triggered checkpoint 19280 | -8/Garrison | Triggered checkpoint 19306 | -8/Garrison | Garrison Relay disabled 19358 | -8/Garrison | Discovered exit to Factory (range 18) 19476 | -8/Garrison | Triggered checkpoint 19500 | -8/Garrison | Core integrity fell below 20% 19514 | -8/Garrison | Triggered checkpoint 19619 | -8/Garrison | Discovered exit to Factory (range 13) 20220 | -8/Garrison | Expanded RIF knowledge: Autoassimilate 20231 | -8/Garrison | Discovered exit to Factory (range 3) 20270 | -8/Garrison | Triggered checkpoint 20296 | -8/Garrison | Garrison Relay disabled 20320 | -8/Garrison | Discovered exit to Factory (range 74) 20320 | -8/Garrison | Discovered exit to Factory (range 57) 20320 | -8/Garrison | Discovered exit to Factory (range 12) 20379 | -8/Garrison | Entered Factory 20379 | -7/Factory | Evolved 2 slots: Propulsion x1, Utility x1 20380 | -7/Factory | Identified exit to Factory 20380 | -7/Factory | Identified exit to Lower Caves 20380 | -7/Factory | Identified exit to Storage 20381 | -7/Factory | FarCom data flow suspended 20382 | -7/Factory | Loaded intel: 126 trap records 20598 | -7/Factory | Build established: Bothacker-Mutant 20629 | -7/Factory | Fabricated Huge Storage Unit? 21610 | -7/Factory | Sucked down chute 21610 | -7/Factory | Entered Waste 21611 | -7/Waste | Met a frightened Derelict 21680 | -7/Waste | Spotted C-40 Crusher 21694 | -7/Waste | Spotted C-40 Crusher 21700 | -7/Waste | Spotted C-40 Crusher 21766 | -7/Waste | Spotted C-40 Crusher 21775 | -7/Waste | Spotted C-40 Crusher 21830 | -7/Waste | Spotted C-40 Crusher 21945 | -7/Waste | Discovered new exit (range 13) 22030 | -7/Waste | Destroyed C-40 Crusher 22101 | -7/Waste | Destroyed C-40 Crusher 22140 | -7/Waste | Destroyed C-40 Crusher 22226 | -7/Waste | Destroyed C-40 Crusher 22303 | -7/Waste | Destroyed C-40 Crusher 22437 | -7/Waste | Destroyed C-40 Crusher 22558 | -7/Waste | Warlord forces began an assault 22639 | -7/Waste | Entered Factory 22639 | -7/Factory | Accompanied by 17 allies 22933 | -7/Factory | Discovered exit to Storage (range 4) 23135 | -7/Factory | Discovered exit to Storage (range 10) 23625 | -7/Factory | Lost 5 allies 23784 | -7/Factory | Lost 3 allies 24204 | -7/Factory | Garrison activated, responded to threat 24279 | -7/Factory | Identified exit to Garrison 24305 | -7/Factory | Entered Garrison 24305 | -7/Garrison | Accompanied by 6 allies 24318 | -7/Garrison | Triggered checkpoint 24370 | -7/Garrison | Expanded RIF knowledge: Signal Jamming 24389 | -7/Garrison | Lost 3 allies 24461 | -7/Garrison | Triggered checkpoint 24471 | -7/Garrison | Garrison Relay disabled 24557 | -7/Garrison | Triggered checkpoint 24652 | -7/Garrison | Destroyed 13 combat bots 24778 | -7/Garrison | Build established: Botlord-Mutant 24988 | -7/Garrison | Garrison Relay disabled 25018 | -7/Garrison | Triggered checkpoint 25175 | -7/Garrison | Triggered checkpoint 25205 | -7/Garrison | Triggered checkpoint 25273 | -7/Garrison | Discovered exit to Factory (range 26) 25273 | -7/Garrison | Discovered exit to Factory (range 65) 25273 | -7/Garrison | Discovered exit to Factory (range 100) 25475 | -7/Garrison | Expanded RIF knowledge: Zone Cloak 25506 | -7/Garrison | Garrison Relay disabled 25634 | -7/Garrison | Learned Factory security intel 25679 | -7/Garrison | Garrison Relay disabled 25714 | -7/Garrison | P-60 Hacker assimilated allied Trooper 4d 25873 | -7/Garrison | Entered Factory 25873 | -6/Factory | Accompanied by 8 allies 25873 | -6/Factory | Evolved 2 slots: Power x1, Utility x1 25954 | -6/Factory | Lost 3 allies 25987 | -6/Factory | Garrison activated, responded to threat 26442 | -6/Factory | Sucked down chute 26442 | -6/Factory | Entered Waste 26443 | -6/Waste | Met a frightened Derelict 26457 | -6/Waste | EMP discharged 26462 | -6/Waste | 2 allies followed down the chute 26482 | -6/Waste | Spotted C-40 Crusher 26515 | -6/Waste | Spotted C-40 Crusher 26515 | -6/Waste | Spotted C-40 Crusher 26525 | -6/Waste | Spotted C-40 Crusher 26528 | -6/Waste | Destroyed C-40 Crusher 26554 | -6/Waste | Spotted C-40 Crusher 26557 | -6/Waste | EMP discharged 26557 | -6/Waste | System corruption reached 10% 26567 | -6/Waste | Spotted C-40 Crusher 26586 | -6/Waste | Destroyed C-40 Crusher 26593 | -6/Waste | Found Damper Plating 26652 | -6/Waste | Destroyed C-40 Crusher 26657 | -6/Waste | EMP discharged 26757 | -6/Waste | EMP discharged 26762 | -6/Waste | Destroyed C-40 Crusher 26857 | -6/Waste | EMP discharged 26905 | -6/Waste | Destroyed C-40 Crusher 26957 | -6/Waste | EMP discharged 27044 | -6/Waste | Discovered new exit (range 12) 27057 | -6/Waste | EMP discharged 27070 | -6/Waste | Entered Factory 27734 | -6/Factory | Discovered new exit (range 4) 27910 | -6/Factory | Discovered new exit (range 12) 28136 | -6/Factory | Identified exit to Garrison 28136 | -6/Factory | Entered Garrison 28136 | -6/Garrison | Accompanied by 1 ally 28304 | -6/Garrison | Triggered checkpoint 28345 | -6/Garrison | Garrison Relay disabled 28494 | -6/Garrison | Triggered checkpoint 28508 | -6/Garrison | Lost 4 allies 28764 | -6/Garrison | Discovered new exit (range 8) 28810 | -6/Garrison | Garrison Relay disabled 28845 | -6/Garrison | Garrison Relay disabled 28851 | -6/Garrison | Garrison Relay disabled 28922 | -6/Garrison | Expanded RIF knowledge: Patrol Navigation 29010 | -6/Garrison | Triggered checkpoint 29114 | -6/Garrison | Triggered checkpoint 29166 | -6/Garrison | Discovered new exit (range 10) 29226 | -6/Garrison | Spotted B-86 Titan 29250 | -6/Garrison | Rewired B-86 Titan 29254 | -6/Garrison | Allies destroyed B-86 Titan 29360 | -6/Garrison | Triggered checkpoint 29440 | -6/Garrison | Lost 3 allies 29632 | -6/Garrison | Found embedded Infiltrators 29638 | -6/Garrison | Triggered checkpoint 29661 | -6/Garrison | Garrison Relay disabled 29697 | -6/Garrison | Discovered new exit (range 14) 29827 | -6/Garrison | Entered Factory 29827 | -5/Factory | Accompanied by 7 allies 29827 | -5/Factory | Evolved 2 slots: Utility x2 29828 | -5/Factory | Identified exit to Extension 29909 | -5/Factory | Lost 4 allies 30081 | -5/Factory | Discovered new exit (range 4) 30315 | -5/Factory | Fabricated M-28 Smith (x1) 30580 | -5/Factory | Discovered new exit (range 16) 30910 | -5/Factory | Identified exit to Garrison 30998 | -5/Factory | Lost 3 allies 31085 | -5/Factory | Entered Garrison 31085 | -5/Garrison | Accompanied by 4 allies 31107 | -5/Garrison | Discovered new exit (range 67) 31107 | -5/Garrison | Discovered new exit (range 79) 31107 | -5/Garrison | Discovered new exit (range 66) 31169 | -5/Garrison | Lost 4 allies 31334 | -5/Garrison | Garrison Relay disabled 31467 | -5/Garrison | Triggered checkpoint 31507 | -5/Garrison | Spotted B-75 Beast 31551 | -5/Garrison | Destroyed B-75 Beast 31595 | -5/Garrison | Triggered checkpoint 31666 | -5/Garrison | Triggered checkpoint 31784 | -5/Garrison | Expanded RIF knowledge: Command Fork 31877 | -5/Garrison | Triggered checkpoint 31998 | -5/Garrison | Garrison Relay disabled 32166 | -5/Garrison | Lost 3 parts (1n1u1w) 32435 | -5/Garrison | Triggered checkpoint 32601 | -5/Garrison | Found Relay Coupler [Proto] 32609 | -5/Garrison | Found Relay Coupler [Proto] 32695 | -5/Garrison | Garrison Relay disabled 32725 | -5/Garrison | Triggered checkpoint 32758 | -5/Garrison | Garrison Relay disabled 32838 | -5/Garrison | Entered Factory 32838 | -4/Factory | Accompanied by 2 allies 32838 | -4/Factory | Evolved 2 slots: Propulsion x2 33105 | -4/Factory | Identified exit to Garrison 33105 | -4/Factory | Entered Garrison 33105 | -4/Garrison | Accompanied by 2 allies 33126 | -4/Garrison | Lost 5 allies 33193 | -4/Garrison | Triggered checkpoint 33212 | -4/Garrison | Garrison Relay disabled 33373 | -4/Garrison | Rescued a captive Derelict 33374 | -4/Garrison | Rescued a captive Derelict 33445 | -4/Garrison | Spotted B-86 Titan 33445 | -4/Garrison | Triggered checkpoint 33453 | -4/Garrison | Triggered checkpoint 33461 | -4/Garrison | Triggered checkpoint 33517 | -4/Garrison | Triggered checkpoint 33522 | -4/Garrison | Lost 8 allies 33551 | -4/Garrison | Garrison Relay disabled 33703 | -4/Garrison | Triggered checkpoint 33716 | -4/Garrison | Garrison Relay disabled 33732 | -4/Garrison | Discovered new exit (range 15) 33861 | -4/Garrison | Discovered new exit (range 11) 33879 | -4/Garrison | Triggered checkpoint 33896 | -4/Garrison | Garrison Relay disabled 33932 | -4/Garrison | Found Quantum Capacitor 34105 | -4/Garrison | Triggered checkpoint 34117 | -4/Garrison | Garrison Relay disabled 34142 | -4/Garrison | Discovered new exit (range 50) 34142 | -4/Garrison | Discovered new exit (range 14) 34142 | -4/Garrison | Discovered new exit (range 54) 34223 | -4/Garrison | Expanded RIF knowledge: Crosswire 34485 | -4/Garrison | Entered Research 34485 | -3/Research | Accompanied by 8 allies 34485 | -3/Research | Evolved 2 slots: Utility x2 34984 | -3/Research | Identified exit to Garrison 35006 | -3/Research | Entered Garrison 35006 | -3/Garrison | Accompanied by 7 allies 35142 | -3/Garrison | Triggered checkpoint 35163 | -3/Garrison | Garrison Relay disabled 35177 | -3/Garrison | Triggered checkpoint 35279 | -3/Garrison | Triggered checkpoint 35282 | -3/Garrison | Triggered checkpoint 35340 | -3/Garrison | Spotted B-86 Titan 35342 | -3/Garrison | Triggered checkpoint 35343 | -3/Garrison | Lost 6 allies 35345 | -3/Garrison | Triggered checkpoint 35363 | -3/Garrison | Allies destroyed B-86 Titan 35396 | -3/Garrison | Lost 5 allies 35400 | -3/Garrison | P-80 Master assimilated allied Champion 8a 35468 | -3/Garrison | Expanded RIF knowledge: Autooverride 35494 | -3/Garrison | Triggered checkpoint 35527 | -3/Garrison | Garrison Relay disabled 35635 | -3/Garrison | Found Unknown Device 35635 | -3/Garrison | Identified Adv. Force Booster 35709 | -3/Garrison | Discovered new exit (range 15) 35744 | -3/Garrison | Garrison Relay disabled 35934 | -3/Garrison | Discovered new exit (range 10) 35952 | -3/Garrison | Triggered checkpoint 35980 | -3/Garrison | Garrison Relay disabled 36143 | -3/Garrison | Spotted Executioner 36143 | -3/Garrison | Spotted Executioner 36161 | -3/Garrison | Allies destroyed Executioner 36166 | -3/Garrison | Allies destroyed Executioner 36305 | -3/Garrison | Triggered checkpoint 36331 | -3/Garrison | Spotted B-90 Cyclops 36338 | -3/Garrison | Rewired B-86 Titan 36339 | -3/Garrison | Spotted B-75 Beast 36343 | -3/Garrison | Destroyed B-90 Cyclops 36366 | -3/Garrison | Rewired B-86 Titan 36370 | -3/Garrison | Allies destroyed B-75 Beast 36460 | -3/Garrison | Triggered checkpoint 36462 | -3/Garrison | Garrison Relay disabled 36544 | -3/Garrison | Spotted B-86 Titan 36552 | -3/Garrison | Destroyed B-86 Titan 36645 | -3/Garrison | Found Relay Coupler [Proto] 36653 | -3/Garrison | Found Relay Coupler [Proto] 36657 | -3/Garrison | Found Relay Coupler [Proto] 36660 | -3/Garrison | Found Relay Coupler [Proto] 36949 | -3/Garrison | Entered Research 36949 | -2/Research | Accompanied by 2 allies 36949 | -2/Research | Evolved 2 slots: Utility x2 37266 | -2/Research | Lost 3 allies 37285 | -2/Research | Spotted B-90 Cyclops 37449 | -2/Research | First assault squad dispatched 37819 | -2/Research | Lost 3 allies 38479 | -2/Research | System corruption reached 10% 38509 | -2/Research | Lost 4 parts (1p2u1w) 38715 | -2/Research | Found Quantum Capacitor 38860 | -2/Research | Fabricated M-28 Smith (x1) 38913 | -2/Research | Lost 3 allies 39057 | -2/Research | Discovered new exit (range 15) 39311 | -2/Research | Found Hvy. Insulated Plating 39376 | -2/Research | Found Prototype Device 39376 | -2/Research | Identified Exp. Shock Absorption System 40148 | -2/Research | Spotted B-90 Cyclops 40175 | -2/Research | Destroyed B-90 Cyclops 40176 | -2/Research | P-80 Master assimilated allied Warden 9f 40210 | -2/Research | Found Quantum Capacitor 40340 | -2/Research | Spotted B-90 Cyclops 41267 | -2/Research | Identified exit to Access 41597 | -2/Research | Discovered new exit (range 8) 41609 | -2/Research | Identified exit to Quarantine 41618 | -2/Research | Entered Quarantine 41801 | -2/Quarantine | Found Alien Artifact 41868 | -2/Quarantine | First assault squad dispatched 42023 | -2/Quarantine | Found Alien Artifact 42259 | -2/Quarantine | Lost 4 parts (2p1n1u) 42363 | -2/Quarantine | Found Quantum Capacitor 42493 | -2/Quarantine | Found Exp. Core Analyzer 42631 | -2/Quarantine | P-80 Master assimilated allied G-73 Enforcer 42698 | -2/Quarantine | Discovered exit to Access (range 15) 42795 | -2/Quarantine | Spotted Fortress 42896 | -2/Quarantine | Lost 3 parts (2u1w) 42935 | -2/Quarantine | Discovered new exit (range 6) 42935 | -2/Quarantine | Discovered new exit (range 6) 42944 | -2/Quarantine | Entered Protoforge 42960 | -2/Protoforge | Spotted B-90 Cyclops 42972 | -2/Protoforge | Destroyed B-90 Cyclops 42980 | -2/Protoforge | Superfortress began startup sequence 42992 | -2/Protoforge | Found Quantum Capacitor 43263 | -2/Protoforge | Core integrity fell below 50% 43268 | -2/Protoforge | System corruption reached 30% 43297 | -2/Protoforge | Destroyed 8 combat bots 43300 | -2/Protoforge | Lost 6 parts (2p4u) 43398 | -2/Protoforge | Discovered exit to Access (range 4) 43529 | -2/Protoforge | Lost 3 parts (3u) 43654 | -2/Protoforge | Spotted Overlord 43713 | -2/Protoforge | Destroyed Overlord 43746 | -2/Protoforge | Spotted Hotshot 43749 | -2/Protoforge | Spotted Hotshot 43750 | -2/Protoforge | Autoassimilated Hotshot with RIF 43752 | -2/Protoforge | Spotted Hotshot 43752 | -2/Protoforge | Spotted Hotshot 43752 | -2/Protoforge | Spotted Hotshot 43787 | -2/Protoforge | Destroyed Hotshot 43798 | -2/Protoforge | Destroyed Hotshot 43806 | -2/Protoforge | Destroyed Hotshot 43835 | -2/Protoforge | Lost 3 parts (1p1n1u) 43943 | -2/Protoforge | Core integrity fell below 20% 43970 | -2/Protoforge | Lost 15 parts (1p7n6u1w) 43992 | -2/Protoforge | Destroyed by H-88 Terminator with KE Penetrator Last Messages --------------- 43961_ U-05 Engineer lays Concrete. 43974_ Critical hit (Burn: +37). 43974_ Slammed into G-73 Enforcer. 43975_ Relay Coupler [Proto] destroyed. 43977_ System corrupted: Matter fused (-10). 43977_ K-01 Serf destroyed. 43978_ P-80 Master resets G-73 Enforcer, system corruption cleaned. 43979_ Slammed into G-73 Enforcer. 43979_ Destabilizing: System corrupted (+1). 43980_ Acquired 7 matter. 43980_ Hvy. Armor Plating destroyed. 43988_ K-01 Serf collects debris. 43989_ Slammed into P-80 Master. 43990_ Slug penetrates Wall. 43992_ U4Q HGHH4/O27C#TYJC|64TTJ 43992_ Slammed into P-80 Master. 43992_ Exp. Core Analyzer broken. 43992_ Destabilizing: Short circuit. 43992_ K-01 Serf collects debris. 43992_ Slug penetrates Wall. Map ----- +----------------------------------------------------+ | ????????????????# #????????????????????????????? | | ???????????????## #????????????????????????????? | | ???????????????# #????????????????????????????? | | ???????????????## #########????????????????????? | | ??????????####??# # #????????????????????? | | ??????# """ """ # # #????????????????????? | | ??????# #????????????????????? | | ??????# # # #????????????????????? | | ??????# ?# #????????????????????? | | ##############"## #####+###????????????????????? | | " #???# #??????????????????????? | | # #???# #??#########???????????? | | # < % #???# #?? #???????????? | | # %%% #####%## #???????????? | | #####+########### # #???????????? | | ????????????????#[% + """""???????????????? | | ????????????????# % # """""???????????????? | | ??????????????#### # ## # """""???????????????? | | ??????????????# # #? ???????????????? | | ??????????????#" # [ #? ??????????????? | | ??????????????#" # #####+##### #???????? | | ??????????????#" #%%%* #???????? | | ??????????????#T # [ h ?????? | | ??????????????#" " "" # hh #???????? | | ??????????????#" """" # p ###############???????? | | ??????????????#" """" #%@ # #??????????????? | | ??????????????# """" #%*g# #??????????????? | | #########?????########"#!k + #??????????????? | | # ????????????##!= # #??????????????? | | # """" #????????????#| %# #??????????????? | | # """" #????????????# #? #??????????????? | | # """" #?????###????# %#??#####??????????????? | | + """ #?????# ??# #?????????????????????? | | # """ #?????# """ #[ #?????????????????????? | | # """ #?????# """ + #?????????????????????? | | # #?????# """ #% #?????????????????????? | | ###########?????# # #?????????????????????? | | # #?????????# ?# %%#?????????????????????? | | # #?????????##+###?# #?????????????????????? | | # #?#########??????# #?????? ??????????????? | | ?? # #??????# #???? ""??????????????? | | ####+## ## #####% #??""""???????????????? | | ! " #^ # """""??????????????? | | # + + """""??????????????? | | """" # # """" # #???????????? | | """" #? # """" #?? #???????????? | | """" #? # """" #???? #???????????? | | """" #?? # """" #??????####???????????? | | ########### #?????????????????????? | | ? ? #?????????????????????? | +----------------------------------------------------+ Best States ------------- Heat Dissipation 170 Coolant Potential 50 Energy Generation 45 Energy Capacity 600 Matter Stores 300 Matter Capacity 300 Sight Range 16 Terrain Scan Density 10 Jamming Range 12 Base Temperature (-) 150 Armor Coverage 1600 Resistance: KI 20 Resistance: TH 15 Resistance: EM 90 Core Shielding 30 Weapon Shielding 90 Weapon Cycling 25 Evasion (%) 50 Targeting Accuracy 8 Core Analysis 8 Recoil Reduction 6 Particle Charging 25 Offensive Hacking 10 Relay Coupler Types 7 Relay Coupler Value 114 Authchip Count 1 Item Schematics ----------------- Huge Storage Unit | -8/Materials | Hacked Cargo Storage Unit | -8/Materials | Hacked Robot Schematics ------------------ M-13 Machinist | -10/Materials | Hacked M-28 Smith | -8/Materials | Hacked Fabricated ------------ Huge Storage Unit | x1 | -7/Factory M-28 Smith | x1 | -5/Factory M-28 Smith | x1 | -2/Research | Authchip Repaired ---------- Med. Armor Plating | 15% | -9/Materials Cooling System | 42% | -8/Materials Cld. Ion Engine | 34% | -8/Materials Spread Laser | 15% | -8/Materials Cooling System | 99% | -8/Materials | Broken Cooling System | 10% | -8/Materials Spread Laser | 28% | -8/Materials Med. Treads | 34% | -8/Materials Alien Tech Used ----------------- None Achievements -------------- None Challenges ------------ None Game ------ Seed HardcellPortableChip Manual? 0 Play Time 04:10:22 Cumulative 715.5 hours Start 2025.05.21 @ 08:11:19 End 2025.05.21 @ 21:49:55 Sessions 11 Manual Loads 0 Difficulty Rogue Special Mode None Game No. 374 Rogue 374 Adventurer 0 Explorer 0 Win Type - Total 58 Types 39/4/5/2/1/1/3/1/1/1 Lore% 92 Gallery% 84 Achievement% 91 Wizard Run 0 Options --------- Layout 0 ASCII 0 Keyboard 1 Movement Numpad Keybinds 0 Fullscreen 2 Font 18/SmallcapsGlow Map View 76x50 Zoom Use 0% Tactical HUD 1 Map Filters NONE Filters NONE Steam 1 RUN: 40c4af6d-960d-4e03-8fb2-ee42ccb60325